{"text_format":"1","workbook":"xlsx","n_sheets":2,"sheets":["Sheet1","Sheet2"],"not_rendered":{"charts":0,"images":0,"macros":1,"external_links":0,"defined_names":0,"comments":0,"pivot_tables":0},"unopened":[],"bounds":{"document_bytes":16777216,"sheet_cells":100000,"rows_first":2000,"rows_last":500,"rows_between":2000,"halvings":0,"cell_chars":16384,"cell_head_chars":4096},"cells_cut":0,"cells_raw":0,"read":"whole","date_system":"1900"}

{"sheet":"Sheet1","index":0,"n_rows":273,"n_cols":32,"rows_kept":273,"cut":false,"hidden":false,"merged":[[5,2,8,2],[5,7,8,7],[6,11,8,11],[5,19,5,28],[6,27,7,27],[6,23,6,25],[6,8,6,10],[6,12,6,14],[6,15,8,15],[6,16,7,16],[6,17,7,17],[5,8,5,17],[6,19,6,21],[6,22,8,22],[5,18,8,18],[3,0,3,1],[4,0,4,1],[5,0,8,0],[5,1,8,1],[0,0,0,1],[0,3,0,6],[0,8,0,15],[1,0,1,1],[2,0,2,1],[2,3,2,6],[2,8,2,14],[5,29,8,29],[6,28,7,28],[5,3,8,3],[5,4,8,4],[5,5,8,5],[5,6,8,6],[6,26,8,26]]}
["محافظة البحيرة ",null,null,"صفحة رقم (      )",null,null,null,null,"صفحة رقم (      )"]
["مديرية التربيه والتعليم "]
["لجنة النظام والمراقبه ",null,null,"صفحة رقم (      )",null,null,null,null,"صفحة رقم (      )",null,null,null,null,null,null,null,null,null,null,null,null,null,null,null,null,null,null,null,null,null,null,"ازرق"]
[null,null,null,null,null,null,null,null,null,null,null,null,null,null,null,null,null,null,null,null,null,null,null,null,null,null,null,null,null,null,null,"اصفر"]
[null,null,null,null,null,null,null,null,null,null,null,null,null,null,null,null,null,null,null,null,null,null,null,null,null,null,null,null,null,null,null,"احمر"]
["رقم الجلوس ","اسم الطالب","النوع","الفصل","الديانة","حالة القيد","الرقم السرى 1","الرقم السرى 2","التربية الدينية ",null,null,null,null,null,null,null,null,null,"التقييم النهائى بالالوان للفصلين ","اللغة العربية",null,null,null,null,null,null,null,null,null,"التقييم النهائى بالالوان للفصلين "]
[null,null,null,null,null,null,null,null,"الفصل الدراسى الاول ",null,null,"التقييم بالالوان الفصل الدراسى الاول ","الفصل الدراسى الثانى ",null,null,"التقييم بالالوان الفصل الدراسى الثانى ","المجموع الكلى ","المتوسط",null,"الفصل الدراسى الاول ",null,null,"التقييم بالالوان الفصل الدراسى الاول ","الفصل الدراسى الثانى ",null,null,"التقييم بالالوان الفصل الدراسى الثانى ","المجموع الكلى ","المتوسط"]
[null,null,null,null,null,null,null,null,"الاختبارات  والمهام الادائية والمواظبة","اختبار الفصل الدراسى الاول","المجموع",null,"الاختبارات  والمهام الادائية والمواظبة","اختبار الفصل الدراسى الثانى ","المجموع",null,null,null,null,"الاختبارات  والمهام الادائية والمواظبة","اختبار الفصل الدراسى الاول","المجموع",null,"الاختبارات  والمهام الادائية والمواظبة","اختبار الفصل ا لدراسى الثانى ","المجموع"]
[null,null,null,null,null,null,null,null,70,30,{"$f":"SUM(I9:J9)","v":100},null,70,30,{"$f":"SUM(M9:N9)","v":100},null,{"$f":"K9+O9","v":200},{"$f":"Q9/2","v":100},null,70,30,{"$f":"SUM(T9:U9)","v":100},null,70,30,{"$f":"SUM(X9:Y9)","v":100},null,{"$f":"V9+Z9","v":200},{"$f":"AB9/2","v":100}]
[1,"ابراهيم عبده ابراهيم الجزار","ذكر",1,"مسلم","منقول",null,null,41,20,{"$f":"SUM(I10:J10)/100","v":0.61},{"$f":"IF(J10=\"\",\"\",ColorSubject(K10))","v":0},70,30,{"$f":"SUM(M10:N10)/100","v":1},{"$f":"IF(N10=\"\",\"\",ColorSubject(O10))","v":0},{"$f":"(K10+O10)*100","v":161},{"$f":"Q10/200","v":0.80500000000000005},{"$f":"IF(N10=\"\",\"\",ColorLastY(R10))","v":"اخضر"},5,22,{"$f":"SUM(T10:U10)/100","v":0.27},{"$f":"IF(U10=\"\",\"\",ColorSubject(V10))","v":"ازرق"},7,15,{"$f":"SUM(X10:Y10)/100","v":0.22},{"$f":"IF(Y10=\"\",\"\",ColorSubject(Z10))","v":"اخضر"},0.49,0.245,{"$f":"IF(Y10=\"\",\"\",ColorLastY(AC10))","v":"احمر"}]
[{"$f":"A10+1","v":2},"احمد رمضان بكر الصعيدى","ذكر",1,"مسلم","منقول",null,null,27,3,0.3,{"$f":"IF(J11=\"\",\"\",ColorSubject(K11))","v":"ازرق"},null,10,0.1,"احمر",40,0.2,"احمر",null,null,0,{"$f":"IF(U11=\"\",\"\",ColorSubject(V11))","v":""},null,null,0,{"$f":"IF(Y11=\"\",\"\",ColorSubject(Z11))","v":""},0,0,{"$f":"IF(Y11=\"\",\"\",ColorLastY(AC11))","v":""}]
[3,"احمد سمير محمد السقا","ذكر",1,"مسلم","منقول",null,null,null,18,0.18,{"$f":"IF(J12=\"\",\"\",ColorSubject(K12))","v":"اصفر"},9,11,0.2,"اخضر",38,0.19,"احمر",null,null,0,{"$f":"IF(U12=\"\",\"\",ColorSubject(V12))","v":""},null,null,0,{"$f":"IF(Y12=\"\",\"\",ColorSubject(Z12))","v":""},0,0,{"$f":"IF(Y12=\"\",\"\",ColorLastY(AC12))","v":""}]
[4,"احمد شاكر ابراهيم بهنسى","ذكر",3,"مسلم","منقول",null,null,null,11,0.11,{"$f":"IF(J13=\"\",\"\",ColorSubject(K13))","v":"احمر"},null,null,0,"",11,5.5E-2,"",null,null,0,"",null,null,0,{"$f":"IF(Y13=\"\",\"\",ColorSubject(Z13))","v":""},0,0,{"$f":"IF(Y13=\"\",\"\",ColorLastY(AC13))","v":""}]
[5,"احمد شفيق امين جبر","ذكر",1,"مسلم","منقول",null,null,null,null,0,{"$f":"IF(J14=\"\",\"\",ColorSubject(K14))","v":""},null,null,0,"",0,0,"",null,null,0,"",null,null,0,{"$f":"IF(Y14=\"\",\"\",ColorSubject(Z14))","v":""},0,0,{"$f":"IF(Y14=\"\",\"\",ColorLastY(AC14))","v":""}]
[6,"احمد عز الدولة أحمد محمد","ذكر",1,"مسلم","منقول",null,null,null,null,0,{"$f":"IF(J15=\"\",\"\",ColorSubject(K15))","v":""},null,null,0,"",0,0,"",null,null,0,"",null,null,0,{"$f":"IF(Y15=\"\",\"\",ColorSubject(Z15))","v":""},0,0,{"$f":"IF(Y15=\"\",\"\",ColorLastY(AC15))","v":""}]
[7,"احمد محمد ابراهيم ابوشوشه","ذكر",1,"مسلم","منقول",null,null,null,null,0,{"$f":"IF(J16=\"\",\"\",ColorSubject(K16))","v":""},null,null,0,"",0,0,"",null,null,0,"",null,null,0,{"$f":"IF(Y16=\"\",\"\",ColorSubject(Z16))","v":""},0,0,{"$f":"IF(Y16=\"\",\"\",ColorLastY(AC16))","v":""}]
[8,"احمد محمد سعيد سلام","ذكر",1,"مسلم","منقول",null,null,null,null,0,{"$f":"IF(J17=\"\",\"\",ColorSubject(K17))","v":""},null,null,0,"",0,0,"",null,null,0,"",null,null,0,{"$f":"IF(Y17=\"\",\"\",ColorSubject(Z17))","v":""},0,0,{"$f":"IF(Y17=\"\",\"\",ColorLastY(AC17))","v":""}]
[9,"احمد محمد عبدالعزيز جبر","ذكر",1,"مسلم","منقول",null,null,null,null,0,{"$f":"IF(J18=\"\",\"\",ColorSubject(K18))","v":""},null,null,0,"",0,0,"",null,null,0,"",null,null,0,{"$f":"IF(Y18=\"\",\"\",ColorSubject(Z18))","v":""},0,0,{"$f":"IF(Y18=\"\",\"\",ColorLastY(AC18))","v":""}]
[10,"ادم احمد حسن الغيمى","ذكر",1,"مسلم","منقول",null,null,null,null,0,{"$f":"IF(J19=\"\",\"\",ColorSubject(K19))","v":""},null,null,0,"",0,0,"",null,null,0,"",null,null,0,{"$f":"IF(Y19=\"\",\"\",ColorSubject(Z19))","v":""},0,0,{"$f":"IF(Y19=\"\",\"\",ColorLastY(AC19))","v":""}]
[11,"اشرف احمد محمد هندى","ذكر",1,"مسلم","منقول",null,null,null,null,0,{"$f":"IF(J20=\"\",\"\",ColorSubject(K20))","v":""},null,null,0,"",0,0,"",null,null,0,"",null,null,0,{"$f":"IF(Y20=\"\",\"\",ColorSubject(Z20))","v":""},0,0,{"$f":"IF(Y20=\"\",\"\",ColorLastY(AC20))","v":""}]
[12,"اشرف عصام محمد ابراهيم دياب","ذكر",1,"مسلم","منقول",null,null,null,null,0,{"$f":"IF(J21=\"\",\"\",ColorSubject(K21))","v":""},null,null,0,"",0,0,"",null,null,0,"",null,null,0,{"$f":"IF(Y21=\"\",\"\",ColorSubject(Z21))","v":""},0,0,{"$f":"IF(Y21=\"\",\"\",ColorLastY(AC21))","v":""}]
[13,"امين احمد ابراهيم الشاذلى","ذكر",1,"مسلم","منقول",null,null,null,null,0,{"$f":"IF(J22=\"\",\"\",ColorSubject(K22))","v":""},null,null,0,"",0,0,"",null,null,0,"",null,null,0,{"$f":"IF(Y22=\"\",\"\",ColorSubject(Z22))","v":""},0,0,{"$f":"IF(Y22=\"\",\"\",ColorLastY(AC22))","v":""}]
[14,"انس ايمن عطيه الغيمى","ذكر",1,"مسلم","منقول",null,null,null,null,0,{"$f":"IF(J23=\"\",\"\",ColorSubject(K23))","v":""},null,null,0,"",0,0,"",null,null,0,"",null,null,0,{"$f":"IF(Y23=\"\",\"\",ColorSubject(Z23))","v":""},0,0,{"$f":"IF(Y23=\"\",\"\",ColorLastY(AC23))","v":""}]
[15,"تميم ايمن محمود مصطفى","ذكر",1,"مسلم","منقول",null,null,null,null,0,null,null,null,0,null,0,0,null,null,null,0,null,null,null,0,{"$f":"IF(Y24=\"\",\"\",ColorSubject(Z24))","v":""},0,0,{"$f":"IF(Y24=\"\",\"\",ColorLastY(AC24))","v":""}]
[16,"جلال محمد جلال ابراهيم","ذكر",1,"مسلم","منقول",null,null,null,null,0,null,null,null,0,null,0,0,null,null,null,0,null,null,null,0,{"$f":"IF(Y25=\"\",\"\",ColorSubject(Z25))","v":""},0,0,{"$f":"IF(Y25=\"\",\"\",ColorLastY(AC25))","v":""}]
[17,"حسن احمد حسن عبده","ذكر",1,"مسلم","منقول",null,null,null,null,0,null,null,null,0,null,0,0,null,null,null,0,null,null,null,0,{"$f":"IF(Y26=\"\",\"\",ColorSubject(Z26))","v":""},0,0,{"$f":"IF(Y26=\"\",\"\",ColorLastY(AC26))","v":""}]
[18,"رمضان مدحت رمضان جوده","ذكر",1,"مسلم","منقول",null,null,null,null,0,null,null,null,0,null,0,0,null,null,null,0,null,null,null,0,{"$f":"IF(Y27=\"\",\"\",ColorSubject(Z27))","v":""},0,0,{"$f":"IF(Y27=\"\",\"\",ColorLastY(AC27))","v":""}]
[19,"زياد محمد على عبد القادر ابو زيد","ذكر",1,"مسلم","منقول",null,null,null,null,0,null,null,null,0,null,0,0,null,null,null,0,null,null,null,0,{"$f":"IF(Y28=\"\",\"\",ColorSubject(Z28))","v":""},0,0,{"$f":"IF(Y28=\"\",\"\",ColorLastY(AC28))","v":""}]
[20,"زياد محمد كامل غريانى","ذكر",1,"مسلم","منقول",null,null,null,null,0,null,null,null,0,null,0,0,null,null,null,0,null,null,null,0,{"$f":"IF(Y29=\"\",\"\",ColorSubject(Z29))","v":""},0,0,{"$f":"IF(Y29=\"\",\"\",ColorLastY(AC29))","v":""}]
[21,"زياد نبيه السيد عبد العال","ذكر",1,"مسلم","منقول",null,null,null,null,0,null,null,null,0,null,0,0,null,null,null,0,null,null,null,0,{"$f":"IF(Y30=\"\",\"\",ColorSubject(Z30))","v":""},0,0,{"$f":"IF(Y30=\"\",\"\",ColorLastY(AC30))","v":""}]
[22,"سعيد احمد ابراهيم سعيد جبر","ذكر",1,"مسلم","منقول",null,null,null,null,0,null,null,null,0,null,0,0,null,null,null,0,null,null,null,0,{"$f":"IF(Y31=\"\",\"\",ColorSubject(Z31))","v":""},0,0,{"$f":"IF(Y31=\"\",\"\",ColorLastY(AC31))","v":""}]
[23,"سعيد احمد ماهر عبده","ذكر",1,"مسلم","منقول",null,null,null,null,0,null,null,null,0,null,0,0,null,null,null,0,null,null,null,0,{"$f":"IF(Y32=\"\",\"\",ColorSubject(Z32))","v":""},0,0,{"$f":"IF(Y32=\"\",\"\",ColorLastY(AC32))","v":""}]
[24,"شبل ابراهيم شبل الغنام","ذكر",1,"مسلم","منقول",null,null,null,null,0,null,null,null,0,null,0,0,null,null,null,0,null,null,null,0,{"$f":"IF(Y33=\"\",\"\",ColorSubject(Z33))","v":""},0,0,{"$f":"IF(Y33=\"\",\"\",ColorLastY(AC33))","v":""}]
[25,"صلاح محمد صلاح الجمال","ذكر",1,"مسلم","منقول",null,null,null,null,0,null,null,null,0,null,0,0,null,null,null,0,null,null,null,0,{"$f":"IF(Y34=\"\",\"\",ColorSubject(Z34))","v":""},0,0,{"$f":"IF(Y34=\"\",\"\",ColorLastY(AC34))","v":""}]
[26,"ضيف احمد ضيف عوض","ذكر",1,"مسلم","منقول",null,null,null,null,0,null,null,null,0,null,0,0,null,null,null,0,null,null,null,0,{"$f":"IF(Y35=\"\",\"\",ColorSubject(Z35))","v":""},0,0,{"$f":"IF(Y35=\"\",\"\",ColorLastY(AC35))","v":""}]
[27,"عادل تامر عادل العبد","ذكر",1,"مسلم","منقول",null,null,null,null,0,null,null,null,0,null,0,0,null,null,null,0,null,null,null,0,{"$f":"IF(Y36=\"\",\"\",ColorSubject(Z36))","v":""},0,0,{"$f":"IF(Y36=\"\",\"\",ColorLastY(AC36))","v":""}]
[28,"عبد الرحمن اسماعيل سليمان العبد","ذكر",1,"مسلم","منقول",null,null,null,null,0,null,null,null,0,null,0,0,null,null,null,0,null,null,null,0,{"$f":"IF(Y37=\"\",\"\",ColorSubject(Z37))","v":""},0,0,{"$f":"IF(Y37=\"\",\"\",ColorLastY(AC37))","v":""}]
[29,"عبد الرحمن عبد الشفيع عبد الخالق عبد الشفيع","ذكر",1,"مسلم","منقول",null,null,null,null,0,null,null,null,0,null,0,0,null,null,null,0,null,null,null,0,{"$f":"IF(Y38=\"\",\"\",ColorSubject(Z38))","v":""},0,0,{"$f":"IF(Y38=\"\",\"\",ColorLastY(AC38))","v":""}]
[30,"عبد الرحمن عثمان عبد المجيد الدستاوى","ذكر",1,"مسلم","منقول",null,null,null,null,0,null,null,null,0,null,0,0,null,null,null,0,null,null,null,0,{"$f":"IF(Y39=\"\",\"\",ColorSubject(Z39))","v":""},0,0,{"$f":"IF(Y39=\"\",\"\",ColorLastY(AC39))","v":""}]
[31,"عبد الرحمن وليد محمد مبروك","ذكر",2,"مسلم","منقول",null,null,null,null,0,null,null,null,0,null,0,0,null,null,null,0,null,null,null,0,{"$f":"IF(Y40=\"\",\"\",ColorSubject(Z40))","v":""},0,0,{"$f":"IF(Y40=\"\",\"\",ColorLastY(AC40))","v":""}]
[32,"عبد العزيز احمد عبدالعزيز البحيرى","ذكر",2,"مسلم","منقول",null,null,null,null,0,null,null,null,0,null,0,0,null,null,null,0,null,null,null,0,{"$f":"IF(Y41=\"\",\"\",ColorSubject(Z41))","v":""},0,0,{"$f":"IF(Y41=\"\",\"\",ColorLastY(AC41))","v":""}]
[33,"عبد الله جمال عبيد هنداوى","ذكر",2,"مسلم","منقول",null,null,null,null,0,null,null,null,0,null,0,0,null,null,null,0,null,null,null,0,{"$f":"IF(Y42=\"\",\"\",ColorSubject(Z42))","v":""},0,0,{"$f":"IF(Y42=\"\",\"\",ColorLastY(AC42))","v":""}]
[34,"عبد الله سعيد ابراهيم جوده","ذكر",2,"مسلم","منقول",null,null,null,null,0,null,null,null,0,null,0,0,null,null,null,0,null,null,null,0,{"$f":"IF(Y43=\"\",\"\",ColorSubject(Z43))","v":""},0,0,{"$f":"IF(Y43=\"\",\"\",ColorLastY(AC43))","v":""}]
[35,"عبد الله محمد عبد الله عبد الصمد","ذكر",2,"مسلم","منقول",null,null,null,null,0,null,null,null,0,null,0,0,null,null,null,0,null,null,null,0,{"$f":"IF(Y44=\"\",\"\",ColorSubject(Z44))","v":""},0,0,{"$f":"IF(Y44=\"\",\"\",ColorLastY(AC44))","v":""}]
[36,"عبدالله محمود عبدالله العبد","ذكر",2,"مسلم","منقول",null,null,null,null,0,null,null,null,0,null,0,0,null,null,null,0,null,null,null,0,{"$f":"IF(Y45=\"\",\"\",ColorSubject(Z45))","v":""},0,0,{"$f":"IF(Y45=\"\",\"\",ColorLastY(AC45))","v":""}]
[37,"على حسن سليمان حسانين","ذكر",2,"مسلم","منقول",null,null,null,null,0,null,null,null,0,null,0,0,null,null,null,0,null,null,null,0,{"$f":"IF(Y46=\"\",\"\",ColorSubject(Z46))","v":""},0,0,{"$f":"IF(Y46=\"\",\"\",ColorLastY(AC46))","v":""}]
[38,"عمر احمد السيد عطوان","ذكر",2,"مسلم","منقول",null,null,null,null,0,null,null,null,0,null,0,0,null,null,null,0,null,null,null,0,{"$f":"IF(Y47=\"\",\"\",ColorSubject(Z47))","v":""},0,0,{"$f":"IF(Y47=\"\",\"\",ColorLastY(AC47))","v":""}]
[39,"عمر شاكر عمر هنداوى","ذكر",2,"مسلم","منقول",null,null,null,null,0,null,null,null,0,null,0,0,null,null,null,0,null,null,null,0,{"$f":"IF(Y48=\"\",\"\",ColorSubject(Z48))","v":""},0,0,{"$f":"IF(Y48=\"\",\"\",ColorLastY(AC48))","v":""}]
[40,"عمر محمد صبحى عزات راشد","ذكر",1,"مسلم","منقول",null,null,null,null,0,null,null,null,0,null,0,0,null,null,null,0,null,null,null,0,{"$f":"IF(Y49=\"\",\"\",ColorSubject(Z49))","v":""},0,0,{"$f":"IF(Y49=\"\",\"\",ColorLastY(AC49))","v":""}]
[41,"عمر نصر ابراهيم فتح الله","ذكر",2,"مسلم","منقول",null,null,null,null,0,null,null,null,0,null,0,0,null,null,null,0,null,null,null,0,{"$f":"IF(Y50=\"\",\"\",ColorSubject(Z50))","v":""},0,0,{"$f":"IF(Y50=\"\",\"\",ColorLastY(AC50))","v":""}]
[42,"عمرو وسيم حمدى عبد ربه","ذكر",2,"مسلم","منقول",null,null,null,null,0,null,null,null,0,null,0,0,null,null,null,0,null,null,null,0,{"$f":"IF(Y51=\"\",\"\",ColorSubject(Z51))","v":""},0,0,{"$f":"IF(Y51=\"\",\"\",ColorLastY(AC51))","v":""}]
[43,"مازن احمد عبد العظيم العبد","ذكر",2,"مسلم","منقول",null,null,null,null,0,null,null,null,0,null,0,0,null,null,null,0,null,null,null,0,{"$f":"IF(Y52=\"\",\"\",ColorSubject(Z52))","v":""},0,0,{"$f":"IF(Y52=\"\",\"\",ColorLastY(AC52))","v":""}]
[44,"محمد ابراهيم سعد رزق فرج ","ذكر",2,"مسلم","منقول",null,null,null,null,0,null,null,null,0,null,0,0,null,null,null,0,null,null,null,0,{"$f":"IF(Y53=\"\",\"\",ColorSubject(Z53))","v":""},0,0,{"$f":"IF(Y53=\"\",\"\",ColorLastY(AC53))","v":""}]
[45,"محمد ابراهيم محمد عواد","ذكر",2,"مسلم","منقول",null,null,null,null,0,null,null,null,0,null,0,0,null,null,null,0,null,null,null,0,{"$f":"IF(Y54=\"\",\"\",ColorSubject(Z54))","v":""},0,0,{"$f":"IF(Y54=\"\",\"\",ColorLastY(AC54))","v":""}]
[46,"محمد ابراهيم مسعد بكر","ذكر",2,"مسلم","منقول",null,null,null,null,0,null,null,null,0,null,0,0,null,null,null,0,null,null,null,0,{"$f":"IF(Y55=\"\",\"\",ColorSubject(Z55))","v":""},0,0,{"$f":"IF(Y55=\"\",\"\",ColorLastY(AC55))","v":""}]
[47,"محمد احمد صبرى محجوب","ذكر",2,"مسلم","منقول",null,null,null,null,0,null,null,null,0,null,0,0,null,null,null,0,null,null,null,0,{"$f":"IF(Y56=\"\",\"\",ColorSubject(Z56))","v":""},0,0,{"$f":"IF(Y56=\"\",\"\",ColorLastY(AC56))","v":""}]
[48,"محمد بكر هنداوى عبده هنداوى","ذكر",2,"مسلم","منقول",null,null,null,null,0,null,null,null,0,null,0,0,null,null,null,0,null,null,null,0,{"$f":"IF(Y57=\"\",\"\",ColorSubject(Z57))","v":""},0,0,{"$f":"IF(Y57=\"\",\"\",ColorLastY(AC57))","v":""}]
[49,"محمد رزق محمد رزق زيدان","ذكر",1,"مسلم","منقول",null,null,null,null,0,null,null,null,0,null,0,0,null,null,null,0,null,null,null,0,{"$f":"IF(Y58=\"\",\"\",ColorSubject(Z58))","v":""},0,0,{"$f":"IF(Y58=\"\",\"\",ColorLastY(AC58))","v":""}]
[50,"محمد رضا ابراهيم جبر","ذكر",2,"مسلم","منقول",null,null,null,null,0,null,null,null,0,null,0,0,null,null,null,0,null,null,null,0,{"$f":"IF(Y59=\"\",\"\",ColorSubject(Z59))","v":""},0,0,{"$f":"IF(Y59=\"\",\"\",ColorLastY(AC59))","v":""}]
[51,"محمد رمضان متولى عبده","ذكر",2,"مسلم","منقول",null,null,null,null,0,null,null,null,0,null,0,0,null,null,null,0,null,null,null,0,{"$f":"IF(Y60=\"\",\"\",ColorSubject(Z60))","v":""},0,0,{"$f":"IF(Y60=\"\",\"\",ColorLastY(AC60))","v":""}]
[52,"محمد رمضان محمد حموده","ذكر",2,"مسلم","منقول",null,null,null,null,0,null,null,null,0,null,0,0,null,null,null,0,null,null,null,0,{"$f":"IF(Y61=\"\",\"\",ColorSubject(Z61))","v":""},0,0,{"$f":"IF(Y61=\"\",\"\",ColorLastY(AC61))","v":""}]
[53,"محمد سعيد امين جبر","ذكر",2,"مسلم","منقول",null,null,null,null,0,null,null,null,0,null,0,0,null,null,null,0,null,null,null,0,{"$f":"IF(Y62=\"\",\"\",ColorSubject(Z62))","v":""},0,0,{"$f":"IF(Y62=\"\",\"\",ColorLastY(AC62))","v":""}]
[54,"محمد شعبان رمزى الغيمى","ذكر",2,"مسلم","منقول",null,null,null,null,0,null,null,null,0,null,0,0,null,null,null,0,null,null,null,0,{"$f":"IF(Y63=\"\",\"\",ColorSubject(Z63))","v":""},0,0,{"$f":"IF(Y63=\"\",\"\",ColorLastY(AC63))","v":""}]
[55,"محمد عابر عبيد عبده","ذكر",2,"مسلم","منقول",null,null,null,null,0,null,null,null,0,null,0,0,null,null,null,0,null,null,null,0,{"$f":"IF(Y64=\"\",\"\",ColorSubject(Z64))","v":""},0,0,{"$f":"IF(Y64=\"\",\"\",ColorLastY(AC64))","v":""}]
[56,"محمد عبده صابر فريج","ذكر",3,"مسلم","منقول",null,null,null,null,0,null,null,null,0,null,0,0,null,null,null,0,null,null,null,0,{"$f":"IF(Y65=\"\",\"\",ColorSubject(Z65))","v":""},0,0,{"$f":"IF(Y65=\"\",\"\",ColorLastY(AC65))","v":""}]
[57,"محمد عمر احمد القاضى","ذكر",3,"مسلم","منقول",null,null,null,null,0,null,null,null,0,null,0,0,null,null,null,0,null,null,null,0,{"$f":"IF(Y66=\"\",\"\",ColorSubject(Z66))","v":""},0,0,{"$f":"IF(Y66=\"\",\"\",ColorLastY(AC66))","v":""}]
[58,"محمد عمر عبدالهادى المحص","ذكر",3,"مسلم","منقول",null,null,null,null,0,null,null,null,0,null,0,0,null,null,null,0,null,null,null,0,{"$f":"IF(Y67=\"\",\"\",ColorSubject(Z67))","v":""},0,0,{"$f":"IF(Y67=\"\",\"\",ColorLastY(AC67))","v":""}]
[59,"محمد محروس محمد فهمي الجيزاوى","ذكر",3,"مسلم","منقول",null,null,null,null,0,null,null,null,0,null,0,0,null,null,null,0,null,null,null,0,{"$f":"IF(Y68=\"\",\"\",ColorSubject(Z68))","v":""},0,0,{"$f":"IF(Y68=\"\",\"\",ColorLastY(AC68))","v":""}]
[60,"محمد وليد محمد العبد","ذكر",3,"مسلم","منقول",null,null,null,null,0,null,null,null,0,null,0,0,null,null,null,0,null,null,null,0,{"$f":"IF(Y69=\"\",\"\",ColorSubject(Z69))","v":""},0,0,{"$f":"IF(Y69=\"\",\"\",ColorLastY(AC69))","v":""}]
[61,"محمود احمد محمود خليفه","ذكر",3,"مسلم","منقول",null,null,null,null,0,null,null,null,0,null,0,0,null,null,null,0,null,null,null,0,{"$f":"IF(Y70=\"\",\"\",ColorSubject(Z70))","v":""},0,0,{"$f":"IF(Y70=\"\",\"\",ColorLastY(AC70))","v":""}]
[62,"محمود رضا محمد ابراهيم حافظ","ذكر",3,"مسلم","منقول",null,null,null,null,0,null,null,null,0,null,0,0,null,null,null,0,null,null,null,0,{"$f":"IF(Y71=\"\",\"\",ColorSubject(Z71))","v":""},0,0,{"$f":"IF(Y71=\"\",\"\",ColorLastY(AC71))","v":""}]
[63,"مروان اسامه عبد العزيزعبد الله","ذكر",3,"مسلم","منقول",null,null,null,null,0,null,null,null,0,null,0,0,null,null,null,0,null,null,null,0,{"$f":"IF(Y72=\"\",\"\",ColorSubject(Z72))","v":""},0,0,{"$f":"IF(Y72=\"\",\"\",ColorLastY(AC72))","v":""}]
[64,"مروان محمد رمضان عميش","ذكر",3,"مسلم","منقول",null,null,null,null,0,null,null,null,0,null,0,0,null,null,null,0,null,null,null,0,{"$f":"IF(Y73=\"\",\"\",ColorSubject(Z73))","v":""},0,0,{"$f":"IF(Y73=\"\",\"\",ColorLastY(AC73))","v":""}]
[65,"مصطفى ابراهيم محمد شحاتة النجار","ذكر",3,"مسلم","منقول",null,null,null,null,{"$f":"SUM(I74:J74)/100","v":0},null,null,null,{"$f":"SUM(M74:N74)/100","v":0},null,{"$f":"(K74+O74)*100","v":0},{"$f":"Q74/200","v":0},null,null,null,{"$f":"SUM(T74:U74)/100","v":0},null,null,null,{"$f":"SUM(X74:Y74)/100","v":0},{"$f":"IF(Y74=\"\",\"\",ColorSubject(Z74))","v":""},0,0,{"$f":"IF(Y74=\"\",\"\",ColorLastY(AC74))","v":""}]
[66,"مصطفى اسلام رمضان جوده","ذكر",3,"مسلم","منقول",null,null,null,null,0,null,null,null,0,null,0,0,null,null,null,0,null,null,null,0,{"$f":"IF(Y75=\"\",\"\",ColorSubject(Z75))","v":""},0,0,{"$f":"IF(Y75=\"\",\"\",ColorLastY(AC75))","v":""}]
[67,"مؤمن وليد أحمد عبد الحميد أحمد","ذكر",3,"مسلم","منقول",null,null,null,null,0,null,null,null,0,null,0,0,null,null,null,0,null,null,null,0,{"$f":"IF(Y76=\"\",\"\",ColorSubject(Z76))","v":""},0,0,{"$f":"IF(Y76=\"\",\"\",ColorLastY(AC76))","v":""}]
[68,"وليد محمد سعيد حسن","ذكر",3,"مسلم","منقول",null,null,null,null,0,null,null,null,0,null,0,0,null,null,null,0,null,null,null,0,{"$f":"IF(Y77=\"\",\"\",ColorSubject(Z77))","v":""},0,0,{"$f":"IF(Y77=\"\",\"\",ColorLastY(AC77))","v":""}]
[69,"يوسف احمد سعيد خليل","ذكر",3,"مسلم","منقول",null,null,null,null,0,null,null,null,0,null,0,0,null,null,null,0,null,null,null,0,{"$f":"IF(Y78=\"\",\"\",ColorSubject(Z78))","v":""},0,0,{"$f":"IF(Y78=\"\",\"\",ColorLastY(AC78))","v":""}]
[70,"يوسف احمد نجيب الجمال","ذكر",3,"مسلم","منقول",null,null,null,null,0,null,null,null,0,null,0,0,null,null,null,0,null,null,null,0,{"$f":"IF(Y79=\"\",\"\",ColorSubject(Z79))","v":""},0,0,{"$f":"IF(Y79=\"\",\"\",ColorLastY(AC79))","v":""}]
[71,"يوسف ايهاب عبد الستار الطنايحى","ذكر",3,"مسلم","منقول",null,null,null,null,0,null,null,null,0,null,0,0,null,null,null,0,null,null,null,0,{"$f":"IF(Y80=\"\",\"\",ColorSubject(Z80))","v":""},0,0,{"$f":"IF(Y80=\"\",\"\",ColorLastY(AC80))","v":""}]
[72,"يوسف حاتم محمد الغنام","ذكر",3,"مسلم","منقول",null,null,null,null,0,null,null,null,0,null,0,0,null,null,null,0,null,null,null,0,{"$f":"IF(Y81=\"\",\"\",ColorSubject(Z81))","v":""},0,0,{"$f":"IF(Y81=\"\",\"\",ColorLastY(AC81))","v":""}]
[73,"يوسف حمدى صلاح ابو هلال","ذكر",3,"مسلم","منقول",null,null,null,null,0,null,null,null,0,null,0,0,null,null,null,0,null,null,null,0,{"$f":"IF(Y82=\"\",\"\",ColorSubject(Z82))","v":""},0,0,{"$f":"IF(Y82=\"\",\"\",ColorLastY(AC82))","v":""}]
[74,"يوسف سليمان ابراهيم هندى","ذكر",3,"مسلم","منقول",null,null,null,null,0,null,null,null,0,null,0,0,null,null,null,0,null,null,null,0,{"$f":"IF(Y83=\"\",\"\",ColorSubject(Z83))","v":""},0,0,{"$f":"IF(Y83=\"\",\"\",ColorLastY(AC83))","v":""}]
[75,"يوسف سمير عاطف ناصف","ذكر",3,"مسلم","منقول",null,null,null,null,0,null,null,null,0,null,0,0,null,null,null,0,null,null,null,0,{"$f":"IF(Y84=\"\",\"\",ColorSubject(Z84))","v":""},0,0,{"$f":"IF(Y84=\"\",\"\",ColorLastY(AC84))","v":""}]
[76,"يوسف شعبان محمد العبد","ذكر",3,"مسلم","منقول",null,null,null,null,0,null,null,null,0,null,0,0,null,null,null,0,null,null,null,0,{"$f":"IF(Y85=\"\",\"\",ColorSubject(Z85))","v":""},0,0,{"$f":"IF(Y85=\"\",\"\",ColorLastY(AC85))","v":""}]
[77,"يوسف صبحى عبد العزيزعبده","ذكر",3,"مسلم","منقول",null,null,null,null,0,null,null,null,0,null,0,0,null,null,null,0,null,null,null,0,{"$f":"IF(Y86=\"\",\"\",ColorSubject(Z86))","v":""},0,0,{"$f":"IF(Y86=\"\",\"\",ColorLastY(AC86))","v":""}]
[78,"يوسف عماد عبد المقصود عبد الرؤوف ","ذكر",3,"مسلم","منقول",null,null,null,null,0,null,null,null,0,null,0,0,null,null,null,0,null,null,null,0,{"$f":"IF(Y87=\"\",\"\",ColorSubject(Z87))","v":""},0,0,{"$f":"IF(Y87=\"\",\"\",ColorLastY(AC87))","v":""}]
[79,"يوسف لطفى عبد العزيز حموده","ذكر",3,"مسلم","منقول",null,null,null,null,0,null,null,null,0,null,0,0,null,null,null,0,null,null,null,0,{"$f":"IF(Y88=\"\",\"\",ColorSubject(Z88))","v":""},0,0,{"$f":"IF(Y88=\"\",\"\",ColorLastY(AC88))","v":""}]
[80,"يوسف محمد حسن هندى","ذكر",3,"مسلم","منقول",null,null,null,null,0,null,null,null,0,null,0,0,null,null,null,0,null,null,null,0,{"$f":"IF(Y89=\"\",\"\",ColorSubject(Z89))","v":""},0,0,{"$f":"IF(Y89=\"\",\"\",ColorLastY(AC89))","v":""}]
[81,"يوسف محمد عبد العزيز الجزار","ذكر",3,"مسلم","منقول",null,null,null,null,0,null,null,null,0,null,0,0,null,null,null,0,null,null,null,0,{"$f":"IF(Y90=\"\",\"\",ColorSubject(Z90))","v":""},0,0,{"$f":"IF(Y90=\"\",\"\",ColorLastY(AC90))","v":""}]
[82,"يوسف محمد عبد الله شفيق","ذكر",2,"مسلم","منقول",null,null,null,null,0,null,null,null,0,null,0,0,null,null,null,0,null,null,null,0,{"$f":"IF(Y91=\"\",\"\",ColorSubject(Z91))","v":""},0,0,{"$f":"IF(Y91=\"\",\"\",ColorLastY(AC91))","v":""}]
[83,"يوسف محمد عبدالعزيز غباشى","ذكر",3,"مسلم","منقول",null,null,null,null,0,null,null,null,0,null,0,0,null,null,null,0,null,null,null,0,{"$f":"IF(Y92=\"\",\"\",ColorSubject(Z92))","v":""},0,0,{"$f":"IF(Y92=\"\",\"\",ColorLastY(AC92))","v":""}]
[84,"يوسف محمد محمود ابو يوسف","ذكر",2,"مسلم","منقول",null,null,null,null,0,null,null,null,0,null,0,0,null,null,null,0,null,null,null,0,{"$f":"IF(Y93=\"\",\"\",ColorSubject(Z93))","v":""},0,0,{"$f":"IF(Y93=\"\",\"\",ColorLastY(AC93))","v":""}]
[85,"يوسف هانى محمد فتح الله ابو اسماعيل","ذكر",3,"مسلم","منقول",null,null,null,null,0,null,null,null,0,null,0,0,null,null,null,0,null,null,null,0,{"$f":"IF(Y94=\"\",\"\",ColorSubject(Z94))","v":""},0,0,{"$f":"IF(Y94=\"\",\"\",ColorLastY(AC94))","v":""}]
[86,"يوسف وديع رزق عبد الملك","ذكر",2,"مسيحى","منقول",null,null,null,null,0,null,null,null,0,null,0,0,null,null,null,0,null,null,null,0,{"$f":"IF(Y95=\"\",\"\",ColorSubject(Z95))","v":""},0,0,{"$f":"IF(Y95=\"\",\"\",ColorLastY(AC95))","v":""}]
[87,"اروى رضا عبد الحميد بدر","انثى",1,"مسلم","منقول",null,null,null,null,0,null,null,null,0,null,0,0,null,null,null,0,null,null,null,0,{"$f":"IF(Y96=\"\",\"\",ColorSubject(Z96))","v":""},0,0,{"$f":"IF(Y96=\"\",\"\",ColorLastY(AC96))","v":""}]
[88,"اروى محمد سعيد ابراهيم ","انثى",1,"مسلم","منقول",null,null,null,null,0,null,null,null,0,null,0,0,null,null,null,0,null,null,null,0,{"$f":"IF(Y97=\"\",\"\",ColorSubject(Z97))","v":""},0,0,{"$f":"IF(Y97=\"\",\"\",ColorLastY(AC97))","v":""}]
[89,"اروى محمد سعيد دياب","انثى",1,"مسلم","منقول",null,null,null,null,0,null,null,null,0,null,0,0,null,null,null,0,null,null,null,0,{"$f":"IF(Y98=\"\",\"\",ColorSubject(Z98))","v":""},0,0,{"$f":"IF(Y98=\"\",\"\",ColorLastY(AC98))","v":""}]
[90,"اسراء احمد نجيب الشرقاوى","انثى",1,"مسلم","منقول",null,null,null,null,0,null,null,null,0,null,0,0,null,null,null,0,null,null,null,0,{"$f":"IF(Y99=\"\",\"\",ColorSubject(Z99))","v":""},0,0,{"$f":"IF(Y99=\"\",\"\",ColorLastY(AC99))","v":""}]
[91,"اسماء ابراهيم سعيد","انثى",1,"مسلم","منقول",null,null,null,null,0,null,null,null,0,null,0,0,null,null,null,0,null,null,null,0,{"$f":"IF(Y100=\"\",\"\",ColorSubject(Z100))","v":""},0,0,{"$f":"IF(Y100=\"\",\"\",ColorLastY(AC100))","v":""}]
[92,"اسماء ابراهيم عبد الله مهدى","انثى",1,"مسلم","منقول",null,null,null,null,0,null,null,null,0,null,0,0,null,null,null,0,null,null,null,0,{"$f":"IF(Y101=\"\",\"\",ColorSubject(Z101))","v":""},0,0,{"$f":"IF(Y101=\"\",\"\",ColorLastY(AC101))","v":""}]
[93,"اسماء عيد امين عبده","انثى",1,"مسلم","منقول",null,null,null,null,0,null,null,null,0,null,0,0,null,null,null,0,null,null,null,0,{"$f":"IF(Y102=\"\",\"\",ColorSubject(Z102))","v":""},0,0,{"$f":"IF(Y102=\"\",\"\",ColorLastY(AC102))","v":""}]
[94,"اسماء محمد احمد القاضى","انثى",1,"مسلم","منقول",null,null,null,null,0,null,null,null,0,null,0,0,null,null,null,0,null,null,null,0,{"$f":"IF(Y103=\"\",\"\",ColorSubject(Z103))","v":""},0,0,{"$f":"IF(Y103=\"\",\"\",ColorLastY(AC103))","v":""}]
[95,"اسماء محمد ادهم دبور","انثى",1,"مسلم","منقول",null,null,null,null,0,null,null,null,0,null,0,0,null,null,null,0,null,null,null,0,{"$f":"IF(Y104=\"\",\"\",ColorSubject(Z104))","v":""},0,0,{"$f":"IF(Y104=\"\",\"\",ColorLastY(AC104))","v":""}]
[96,"اسماء محمد رمضان البدرشينى","انثى",1,"مسلم","منقول",null,null,null,null,0,null,null,null,0,null,0,0,null,null,null,0,null,null,null,0,{"$f":"IF(Y105=\"\",\"\",ColorSubject(Z105))","v":""},0,0,{"$f":"IF(Y105=\"\",\"\",ColorLastY(AC105))","v":""}]
[97,"اسماء هانى صلاح الجمال","انثى",1,"مسلم","منقول",null,null,null,null,0,null,null,null,0,null,0,0,null,null,null,0,null,null,null,0,{"$f":"IF(Y106=\"\",\"\",ColorSubject(Z106))","v":""},0,0,{"$f":"IF(Y106=\"\",\"\",ColorLastY(AC106))","v":""}]
[98,"الاء رضا السيد قطب فريج","انثى",1,"مسلم","منقول",null,null,null,null,0,null,null,null,0,null,0,0,null,null,null,0,null,null,null,0,{"$f":"IF(Y107=\"\",\"\",ColorSubject(Z107))","v":""},0,0,{"$f":"IF(Y107=\"\",\"\",ColorLastY(AC107))","v":""}]
[99,"الاء رضا عبدالحميد عبد الصادق محمد","انثى",1,"مسلم","منقول",null,null,null,null,0,null,null,null,0,null,0,0,null,null,null,0,null,null,null,0,{"$f":"IF(Y108=\"\",\"\",ColorSubject(Z108))","v":""},0,0,{"$f":"IF(Y108=\"\",\"\",ColorLastY(AC108))","v":""}]
[100,"الاء شعبان محمد خفاجه","انثى",1,"مسلم","منقول",null,null,null,null,0,null,null,null,0,null,0,0,null,null,null,0,null,null,null,0,{"$f":"IF(Y109=\"\",\"\",ColorSubject(Z109))","v":""},0,0,{"$f":"IF(Y109=\"\",\"\",ColorLastY(AC109))","v":""}]
[101,"الاء محمد السيد غريانى","انثى",1,"مسلم","منقول",null,null,null,null,0,null,null,null,0,null,0,0,null,null,null,0,null,null,null,0,{"$f":"IF(Y110=\"\",\"\",ColorSubject(Z110))","v":""},0,0,{"$f":"IF(Y110=\"\",\"\",ColorLastY(AC110))","v":""}]
[102,"الاء محمود ابراهيم ابوالعنين","انثى",1,"مسلم","منقول",null,null,null,null,0,null,null,null,0,null,0,0,null,null,null,0,null,null,null,0,{"$f":"IF(Y111=\"\",\"\",ColorSubject(Z111))","v":""},0,0,{"$f":"IF(Y111=\"\",\"\",ColorLastY(AC111))","v":""}]
[103,"اميره احمد عبده هنداوى","انثى",1,"مسلم","منقول",null,null,null,null,0,null,null,null,0,null,0,0,null,null,null,0,null,null,null,0,{"$f":"IF(Y112=\"\",\"\",ColorSubject(Z112))","v":""},0,0,{"$f":"IF(Y112=\"\",\"\",ColorLastY(AC112))","v":""}]
[104,"انهار احمد سعد عبد الغفار","انثى",1,"مسلم","منقول",null,null,null,null,0,null,null,null,0,null,0,0,null,null,null,0,null,null,null,0,{"$f":"IF(Y113=\"\",\"\",ColorSubject(Z113))","v":""},0,0,{"$f":"IF(Y113=\"\",\"\",ColorLastY(AC113))","v":""}]
[105,"ايمان على محمد حموده","انثى",1,"مسلم","منقول",null,null,null,null,0,null,null,null,0,null,0,0,null,null,null,0,null,null,null,0,{"$f":"IF(Y114=\"\",\"\",ColorSubject(Z114))","v":""},0,0,{"$f":"IF(Y114=\"\",\"\",ColorLastY(AC114))","v":""}]
[106,"ايمان محمد ابراهيم عبد السلام","انثى",1,"مسلم","منقول",null,null,null,null,0,null,null,null,0,null,0,0,null,null,null,0,null,null,null,0,{"$f":"IF(Y115=\"\",\"\",ColorSubject(Z115))","v":""},0,0,{"$f":"IF(Y115=\"\",\"\",ColorLastY(AC115))","v":""}]
[107,"ايه ايهاب توفيق عباس العبد","انثى",1,"مسلم","منقول",null,null,null,null,0,null,null,null,0,null,0,0,null,null,null,0,null,null,null,0,{"$f":"IF(Y116=\"\",\"\",ColorSubject(Z116))","v":""},0,0,{"$f":"IF(Y116=\"\",\"\",ColorLastY(AC116))","v":""}]
[108,"ايه صبحى الشحات سرور","انثى",1,"مسلم","منقول",null,null,null,null,0,null,null,null,0,null,0,0,null,null,null,0,null,null,null,0,{"$f":"IF(Y117=\"\",\"\",ColorSubject(Z117))","v":""},0,0,{"$f":"IF(Y117=\"\",\"\",ColorLastY(AC117))","v":""}]
[109,"ايه عبده ابراهيم البدرى","انثى",1,"مسلم","منقول",null,null,null,null,0,null,null,null,0,null,0,0,null,null,null,0,null,null,null,0,{"$f":"IF(Y118=\"\",\"\",ColorSubject(Z118))","v":""},0,0,{"$f":"IF(Y118=\"\",\"\",ColorLastY(AC118))","v":""}]
[110,"بسنت بهاء كمال الجمال","انثى",1,"مسلم","منقول",null,null,null,null,0,null,null,null,0,null,0,0,null,null,null,0,null,null,null,0,{"$f":"IF(Y119=\"\",\"\",ColorSubject(Z119))","v":""},0,0,{"$f":"IF(Y119=\"\",\"\",ColorLastY(AC119))","v":""}]
[111,"جنا اسماعيل محمد هنداوى","انثى",1,"مسلم","منقول",null,null,null,null,0,null,null,null,0,null,0,0,null,null,null,0,null,null,null,0,{"$f":"IF(Y120=\"\",\"\",ColorSubject(Z120))","v":""},0,0,{"$f":"IF(Y120=\"\",\"\",ColorLastY(AC120))","v":""}]
[112,"جنا اشرف محمد الطانيحى","انثى",1,"مسلم","منقول",null,null,null,null,0,null,null,null,0,null,0,0,null,null,null,0,null,null,null,0,{"$f":"IF(Y121=\"\",\"\",ColorSubject(Z121))","v":""},0,0,{"$f":"IF(Y121=\"\",\"\",ColorLastY(AC121))","v":""}]
[113,"جنا أحمد سليمان سيد أحمد سليمان","انثى",1,"مسلم","منقول",null,null,null,null,0,null,null,null,0,null,0,0,null,null,null,0,null,null,null,0,{"$f":"IF(Y122=\"\",\"\",ColorSubject(Z122))","v":""},0,0,{"$f":"IF(Y122=\"\",\"\",ColorLastY(AC122))","v":""}]
[114,"جنا سعيد اسماعيل خليل","انثى",1,"مسلم","منقول",null,null,null,null,0,null,null,null,0,null,0,0,null,null,null,0,null,null,null,0,{"$f":"IF(Y123=\"\",\"\",ColorSubject(Z123))","v":""},0,0,{"$f":"IF(Y123=\"\",\"\",ColorLastY(AC123))","v":""}]
[115,"جنا عيد فوزى ابو زيد","انثى",1,"مسلم","منقول",null,null,null,null,0,null,null,null,0,null,0,0,null,null,null,0,null,null,null,0,{"$f":"IF(Y124=\"\",\"\",ColorSubject(Z124))","v":""},0,0,{"$f":"IF(Y124=\"\",\"\",ColorLastY(AC124))","v":""}]
[116,"جنا فيصل عبد الله الصافى العبد","انثى",1,"مسلم","منقول",null,null,null,null,0,null,null,null,0,null,0,0,null,null,null,0,null,null,null,0,{"$f":"IF(Y125=\"\",\"\",ColorSubject(Z125))","v":""},0,0,{"$f":"IF(Y125=\"\",\"\",ColorLastY(AC125))","v":""}]
[117,"جنا محمد عبدالله الصعيدى","انثى",1,"مسلم","منقول",null,null,null,null,0,null,null,null,0,null,0,0,null,null,null,0,null,null,null,0,{"$f":"IF(Y126=\"\",\"\",ColorSubject(Z126))","v":""},0,0,{"$f":"IF(Y126=\"\",\"\",ColorLastY(AC126))","v":""}]
[118,"جنا مصطفى فاضل الكربيجى","انثى",1,"مسلم","منقول",null,null,null,null,0,null,null,null,0,null,0,0,null,null,null,0,null,null,null,0,{"$f":"IF(Y127=\"\",\"\",ColorSubject(Z127))","v":""},0,0,{"$f":"IF(Y127=\"\",\"\",ColorLastY(AC127))","v":""}]
[119,"جنى محمود عبدالهادى المحص","انثى",1,"مسلم","منقول",null,null,null,null,0,null,null,null,0,null,0,0,null,null,null,0,null,null,null,0,{"$f":"IF(Y128=\"\",\"\",ColorSubject(Z128))","v":""},0,0,{"$f":"IF(Y128=\"\",\"\",ColorLastY(AC128))","v":""}]
[120,"جيهانده ايهاب نجيب الشرقاوى","انثى",2,"مسلم","منقول",null,null,null,null,0,null,null,null,0,null,0,0,null,null,null,0,null,null,null,0,{"$f":"IF(Y129=\"\",\"\",ColorSubject(Z129))","v":""},0,0,{"$f":"IF(Y129=\"\",\"\",ColorLastY(AC129))","v":""}]
[121,"حبيبه احمد محمود خفاجى","انثى",2,"مسلم","منقول",null,null,null,null,0,null,null,null,0,null,0,0,null,null,null,0,null,null,null,0,{"$f":"IF(Y130=\"\",\"\",ColorSubject(Z130))","v":""},0,0,{"$f":"IF(Y130=\"\",\"\",ColorLastY(AC130))","v":""}]
[122,"حبيبه السيد رمضان بدر","انثى",2,"مسلم","منقول",null,null,null,null,0,null,null,null,0,null,0,0,null,null,null,0,null,null,null,0,{"$f":"IF(Y131=\"\",\"\",ColorSubject(Z131))","v":""},0,0,{"$f":"IF(Y131=\"\",\"\",ColorLastY(AC131))","v":""}]
[123,"حبيبه عطا محمد حموده","انثى",2,"مسلم","منقول",null,null,null,null,0,null,null,null,0,null,0,0,null,null,null,0,null,null,null,0,{"$f":"IF(Y132=\"\",\"\",ColorSubject(Z132))","v":""},0,0,{"$f":"IF(Y132=\"\",\"\",ColorLastY(AC132))","v":""}]
[124,"حبيبه فريد متولى عبده","انثى",2,"مسلم","منقول",null,null,null,null,0,null,null,null,0,null,0,0,null,null,null,0,null,null,null,0,{"$f":"IF(Y133=\"\",\"\",ColorSubject(Z133))","v":""},0,0,{"$f":"IF(Y133=\"\",\"\",ColorLastY(AC133))","v":""}]
[125,"حنين احمد عبد المقصود عبد الرؤف","انثى",2,"مسلم","منقول",null,null,null,null,0,null,null,null,0,null,0,0,null,null,null,0,null,null,null,0,{"$f":"IF(Y134=\"\",\"\",ColorSubject(Z134))","v":""},0,0,{"$f":"IF(Y134=\"\",\"\",ColorLastY(AC134))","v":""}]
[126,"حنين عبد العظيم حامد الصعيدى","انثى",2,"مسلم","منقول",null,null,null,null,0,null,null,null,0,null,0,0,null,null,null,0,null,null,null,0,{"$f":"IF(Y135=\"\",\"\",ColorSubject(Z135))","v":""},0,0,{"$f":"IF(Y135=\"\",\"\",ColorLastY(AC135))","v":""}]
[127,"حنين فؤاد صالح شفيق مهدى","انثى",2,"مسلم","منقول",null,null,null,null,0,null,null,null,0,null,0,0,null,null,null,0,null,null,null,0,{"$f":"IF(Y136=\"\",\"\",ColorSubject(Z136))","v":""},0,0,{"$f":"IF(Y136=\"\",\"\",ColorLastY(AC136))","v":""}]
[128,"حور العين عاصم صلاح الجمال","انثى",2,"مسلم","منقول",null,null,null,null,0,null,null,null,0,null,0,0,null,null,null,0,null,null,null,0,{"$f":"IF(Y137=\"\",\"\",ColorSubject(Z137))","v":""},0,0,{"$f":"IF(Y137=\"\",\"\",ColorLastY(AC137))","v":""}]
[129,"حيات عمرو عبد المقصود الدستاوى","انثى",2,"مسلم","منقول",null,null,null,null,{"$f":"SUM(I138:J138)/100","v":0},null,null,null,{"$f":"SUM(M138:N138)/100","v":0},null,{"$f":"(K138+O138)*100","v":0},{"$f":"Q138/200","v":0},null,null,null,{"$f":"SUM(T138:U138)/100","v":0},null,null,null,{"$f":"SUM(X138:Y138)/100","v":0},{"$f":"IF(Y138=\"\",\"\",ColorSubject(Z138))","v":""},0,0,{"$f":"IF(Y138=\"\",\"\",ColorLastY(AC138))","v":""}]
[130,"خلود محمود السيد الصعيدى","انثى",2,"مسلم","منقول",null,null,null,null,0,null,null,null,0,null,0,0,null,null,null,0,null,null,null,0,{"$f":"IF(Y139=\"\",\"\",ColorSubject(Z139))","v":""},0,0,{"$f":"IF(Y139=\"\",\"\",ColorLastY(AC139))","v":""}]
[131,"دنيا قطب عبد المقصود جبر","انثى",2,"مسلم","منقول",null,null,null,null,0,null,null,null,0,null,0,0,null,null,null,0,null,null,null,0,{"$f":"IF(Y140=\"\",\"\",ColorSubject(Z140))","v":""},0,0,{"$f":"IF(Y140=\"\",\"\",ColorLastY(AC140))","v":""}]
[132,"دينا رجب ابراهيم عويضه","انثى",2,"مسلم","منقول",null,null,null,null,0,null,null,null,0,null,0,0,null,null,null,0,null,null,null,0,{"$f":"IF(Y141=\"\",\"\",ColorSubject(Z141))","v":""},0,0,{"$f":"IF(Y141=\"\",\"\",ColorLastY(AC141))","v":""}]
[133,"روان عصام عبد القوى دبور","انثى",2,"مسلم","منقول",null,null,null,null,0,null,null,null,0,null,0,0,null,null,null,0,null,null,null,0,{"$f":"IF(Y142=\"\",\"\",ColorSubject(Z142))","v":""},0,0,{"$f":"IF(Y142=\"\",\"\",ColorLastY(AC142))","v":""}]
[134,"رودينا فارس محمد فهمى الجيزاوى","انثى",1,"مسلم","منقول",null,null,null,null,0,null,null,null,0,null,0,0,null,null,null,0,null,null,null,0,{"$f":"IF(Y143=\"\",\"\",ColorSubject(Z143))","v":""},0,0,{"$f":"IF(Y143=\"\",\"\",ColorLastY(AC143))","v":""}]
[135,"رودينا هنداوى على هنداوى","انثى",2,"مسلم","منقول",null,null,null,null,0,null,null,null,0,null,0,0,null,null,null,0,null,null,null,0,{"$f":"IF(Y144=\"\",\"\",ColorSubject(Z144))","v":""},0,0,{"$f":"IF(Y144=\"\",\"\",ColorLastY(AC144))","v":""}]
[136,"ساره محمد حسين حموده","انثى",2,"مسلم","منقول",null,null,null,null,0,null,null,null,0,null,0,0,null,null,null,0,null,null,null,0,{"$f":"IF(Y145=\"\",\"\",ColorSubject(Z145))","v":""},0,0,{"$f":"IF(Y145=\"\",\"\",ColorLastY(AC145))","v":""}]
[137,"سلفانا اديب سامى زكى حنا","انثى",2,"مسيحى","منقول",null,null,null,null,0,null,null,null,0,null,0,0,null,null,null,0,null,null,null,0,{"$f":"IF(Y146=\"\",\"\",ColorSubject(Z146))","v":""},0,0,{"$f":"IF(Y146=\"\",\"\",ColorLastY(AC146))","v":""}]
[138,"سما محمد ابراهيم الجزار","انثى",2,"مسلم","منقول",null,null,null,null,0,null,null,null,0,null,0,0,null,null,null,0,null,null,null,0,{"$f":"IF(Y147=\"\",\"\",ColorSubject(Z147))","v":""},0,0,{"$f":"IF(Y147=\"\",\"\",ColorLastY(AC147))","v":""}]
[139,"سما مصطفى عثمان هنداوى","انثى",2,"مسلم","منقول",null,null,null,null,0,null,null,null,0,null,0,0,null,null,null,0,null,null,null,0,{"$f":"IF(Y148=\"\",\"\",ColorSubject(Z148))","v":""},0,0,{"$f":"IF(Y148=\"\",\"\",ColorLastY(AC148))","v":""}]
[140,"سماح ابراهيم الدسوقى عبد العزيز","انثى",2,"مسلم","منقول",null,null,null,null,0,null,null,null,0,null,0,0,null,null,null,0,null,null,null,0,{"$f":"IF(Y149=\"\",\"\",ColorSubject(Z149))","v":""},0,0,{"$f":"IF(Y149=\"\",\"\",ColorLastY(AC149))","v":""}]
[141,"شمس رضا رمضان ناجى","انثى",3,"مسلم","منقول",null,null,null,null,0,null,null,null,0,null,0,0,null,null,null,0,null,null,null,0,{"$f":"IF(Y150=\"\",\"\",ColorSubject(Z150))","v":""},0,0,{"$f":"IF(Y150=\"\",\"\",ColorLastY(AC150))","v":""}]
[142,"شهد وحيد كامل توفيق","انثى",2,"مسلم","منقول",null,null,null,null,0,null,null,null,0,null,0,0,null,null,null,0,null,null,null,0,{"$f":"IF(Y151=\"\",\"\",ColorSubject(Z151))","v":""},0,0,{"$f":"IF(Y151=\"\",\"\",ColorLastY(AC151))","v":""}]
[143,"شيماء سامى كمال زيد","انثى",2,"مسلم","منقول",null,null,null,null,0,null,null,null,0,null,0,0,null,null,null,0,null,null,null,0,{"$f":"IF(Y152=\"\",\"\",ColorSubject(Z152))","v":""},0,0,{"$f":"IF(Y152=\"\",\"\",ColorLastY(AC152))","v":""}]
[144,"ضى حماده محمد عيد","انثى",2,"مسلم","منقول",null,null,null,null,0,null,null,null,0,null,0,0,null,null,null,0,null,null,null,0,{"$f":"IF(Y153=\"\",\"\",ColorSubject(Z153))","v":""},0,0,{"$f":"IF(Y153=\"\",\"\",ColorLastY(AC153))","v":""}]
[145,"علياء رجب سعد هلالى","انثى",2,"مسلم","منقول",null,null,null,null,0,null,null,null,0,null,0,0,null,null,null,0,null,null,null,0,{"$f":"IF(Y154=\"\",\"\",ColorSubject(Z154))","v":""},0,0,{"$f":"IF(Y154=\"\",\"\",ColorLastY(AC154))","v":""}]
[146,"فاطمه الزهراء كارم محمود رضوان","انثى",2,"مسلم","منقول",null,null,null,null,0,null,null,null,0,null,0,0,null,null,null,0,null,null,null,0,{"$f":"IF(Y155=\"\",\"\",ColorSubject(Z155))","v":""},0,0,{"$f":"IF(Y155=\"\",\"\",ColorLastY(AC155))","v":""}]
[147,"فاطمه السيد ابراهيم الغنام","انثى",2,"مسلم","منقول",null,null,null,null,0,null,null,null,0,null,0,0,null,null,null,0,null,null,null,0,{"$f":"IF(Y156=\"\",\"\",ColorSubject(Z156))","v":""},0,0,{"$f":"IF(Y156=\"\",\"\",ColorLastY(AC156))","v":""}]
[148,"فاطمه موسى على الجمال","انثى",2,"مسلم","منقول",null,null,null,null,0,null,null,null,0,null,0,0,null,null,null,0,null,null,null,0,{"$f":"IF(Y157=\"\",\"\",ColorSubject(Z157))","v":""},0,0,{"$f":"IF(Y157=\"\",\"\",ColorLastY(AC157))","v":""}]
[149,"لقاء سليمان كامل جبر","انثى",2,"مسلم","منقول",null,null,null,null,0,null,null,null,0,null,0,0,null,null,null,0,null,null,null,0,{"$f":"IF(Y158=\"\",\"\",ColorSubject(Z158))","v":""},0,0,{"$f":"IF(Y158=\"\",\"\",ColorLastY(AC158))","v":""}]
[150,"لوجين حازم محمد الشرقاوى","انثى",2,"مسلم","منقول",null,null,null,null,0,null,null,null,0,null,0,0,null,null,null,0,null,null,null,0,{"$f":"IF(Y159=\"\",\"\",ColorSubject(Z159))","v":""},0,0,{"$f":"IF(Y159=\"\",\"\",ColorLastY(AC159))","v":""}]
[151,"ليلى سامى جميل جوده","انثى",3,"مسلم","منقول",null,null,null,null,0,null,null,null,0,null,0,0,null,null,null,0,null,null,null,0,{"$f":"IF(Y160=\"\",\"\",ColorSubject(Z160))","v":""},0,0,{"$f":"IF(Y160=\"\",\"\",ColorLastY(AC160))","v":""}]
[152,"ليلى محمد هلال ابو هلال","انثى",3,"مسلم","منقول",null,null,null,null,0,null,null,null,0,null,0,0,null,null,null,0,null,null,null,0,{"$f":"IF(Y161=\"\",\"\",ColorSubject(Z161))","v":""},0,0,{"$f":"IF(Y161=\"\",\"\",ColorLastY(AC161))","v":""}]
[153,"مرام وليد على الدستاوى","انثى",3,"مسلم","منقول",null,null,null,null,0,null,null,null,0,null,0,0,null,null,null,0,null,null,null,0,{"$f":"IF(Y162=\"\",\"\",ColorSubject(Z162))","v":""},0,0,{"$f":"IF(Y162=\"\",\"\",ColorLastY(AC162))","v":""}]
[154,"مروه ابراهيم احمد العباسى","انثى",3,"مسلم","منقول",null,null,null,null,0,null,null,null,0,null,0,0,null,null,null,0,null,null,null,0,{"$f":"IF(Y163=\"\",\"\",ColorSubject(Z163))","v":""},0,0,{"$f":"IF(Y163=\"\",\"\",ColorLastY(AC163))","v":""}]
[155,"مريم احمد محمد بدر","انثى",3,"مسلم","منقول",null,null,null,null,0,null,null,null,0,null,0,0,null,null,null,0,null,null,null,0,{"$f":"IF(Y164=\"\",\"\",ColorSubject(Z164))","v":""},0,0,{"$f":"IF(Y164=\"\",\"\",ColorLastY(AC164))","v":""}]
[156,"مريم طه محمد مصطفى","انثى",3,"مسلم","منقول",null,null,null,null,0,null,null,null,0,null,0,0,null,null,null,0,null,null,null,0,{"$f":"IF(Y165=\"\",\"\",ColorSubject(Z165))","v":""},0,0,{"$f":"IF(Y165=\"\",\"\",ColorLastY(AC165))","v":""}]
[157,"مريم محمد فتحى حجازى","انثى",3,"مسلم","منقول",null,null,null,null,0,null,null,null,0,null,0,0,null,null,null,0,null,null,null,0,{"$f":"IF(Y166=\"\",\"\",ColorSubject(Z166))","v":""},0,0,{"$f":"IF(Y166=\"\",\"\",ColorLastY(AC166))","v":""}]
[158,"مريم مروان احمد جبر","انثى",3,"مسلم","منقول",null,null,null,null,0,null,null,null,0,null,0,0,null,null,null,0,null,null,null,0,{"$f":"IF(Y167=\"\",\"\",ColorSubject(Z167))","v":""},0,0,{"$f":"IF(Y167=\"\",\"\",ColorLastY(AC167))","v":""}]
[159,"مريم وجيه سعد حنا عبد الملك","انثى",2,"مسيحى","منقول",null,null,null,null,0,null,null,null,0,null,0,0,null,null,null,0,null,null,null,0,{"$f":"IF(Y168=\"\",\"\",ColorSubject(Z168))","v":""},0,0,{"$f":"IF(Y168=\"\",\"\",ColorLastY(AC168))","v":""}]
[160,"ملك حاتم صلاح الجمال","انثى",3,"مسلم","منقول",null,null,null,null,0,null,null,null,0,null,0,0,null,null,null,0,null,null,null,0,{"$f":"IF(Y169=\"\",\"\",ColorSubject(Z169))","v":""},0,0,{"$f":"IF(Y169=\"\",\"\",ColorLastY(AC169))","v":""}]
[161,"ملك رفيق محمد العبد","انثى",3,"مسلم","منقول",null,null,null,null,0,null,null,null,0,null,0,0,null,null,null,0,null,null,null,0,{"$f":"IF(Y170=\"\",\"\",ColorSubject(Z170))","v":""},0,0,{"$f":"IF(Y170=\"\",\"\",ColorLastY(AC170))","v":""}]
[162,"ملك عبد النبى اسماعيل محمود اسماعيل","انثى",3,"مسلم","منقول",null,null,null,null,0,null,null,null,0,null,0,0,null,null,null,0,null,null,null,0,{"$f":"IF(Y171=\"\",\"\",ColorSubject(Z171))","v":""},0,0,{"$f":"IF(Y171=\"\",\"\",ColorLastY(AC171))","v":""}]
[163,"ملك محمد عبدالعظيم حجازى","انثى",3,"مسلم","منقول",null,null,null,null,0,null,null,null,0,null,0,0,null,null,null,0,null,null,null,0,{"$f":"IF(Y172=\"\",\"\",ColorSubject(Z172))","v":""},0,0,{"$f":"IF(Y172=\"\",\"\",ColorLastY(AC172))","v":""}]
[164,"ملك محمود حامد الصعيدى","انثى",3,"مسلم","منقول",null,null,null,null,0,null,null,null,0,null,0,0,null,null,null,0,null,null,null,0,{"$f":"IF(Y173=\"\",\"\",ColorSubject(Z173))","v":""},0,0,{"$f":"IF(Y173=\"\",\"\",ColorLastY(AC173))","v":""}]
[165,"منه احمد عبد العزيز عبد الرؤف","انثى",3,"مسلم","منقول",null,null,null,null,0,null,null,null,0,null,0,0,null,null,null,0,null,null,null,0,{"$f":"IF(Y174=\"\",\"\",ColorSubject(Z174))","v":""},0,0,{"$f":"IF(Y174=\"\",\"\",ColorLastY(AC174))","v":""}]
[166,"منه رضا ابراهيم عويضه","انثى",3,"مسلم","منقول",null,null,null,null,0,null,null,null,0,null,0,0,null,null,null,0,null,null,null,0,{"$f":"IF(Y175=\"\",\"\",ColorSubject(Z175))","v":""},0,0,{"$f":"IF(Y175=\"\",\"\",ColorLastY(AC175))","v":""}]
[167,"مى محمود فهيم الجيار","انثى",3,"مسلم","منقول",null,null,null,null,0,null,null,null,0,null,0,0,null,null,null,0,null,null,null,0,{"$f":"IF(Y176=\"\",\"\",ColorSubject(Z176))","v":""},0,0,{"$f":"IF(Y176=\"\",\"\",ColorLastY(AC176))","v":""}]
[168,"ميار وليد على الدستاوى","انثى",3,"مسلم","منقول",null,null,null,null,0,null,null,null,0,null,0,0,null,null,null,0,null,null,null,0,{"$f":"IF(Y177=\"\",\"\",ColorSubject(Z177))","v":""},0,0,{"$f":"IF(Y177=\"\",\"\",ColorLastY(AC177))","v":""}]
[169,"ميرنا ياسر محمد هلالى","انثى",3,"مسلم","منقول",null,null,null,null,0,null,null,null,0,null,0,0,null,null,null,0,null,null,null,0,{"$f":"IF(Y178=\"\",\"\",ColorSubject(Z178))","v":""},0,0,{"$f":"IF(Y178=\"\",\"\",ColorLastY(AC178))","v":""}]
[170,"نادية وليد صلاح حجازى","انثى",3,"مسلم","منقول",null,null,null,null,0,null,null,null,0,null,0,0,null,null,null,0,null,null,null,0,{"$f":"IF(Y179=\"\",\"\",ColorSubject(Z179))","v":""},0,0,{"$f":"IF(Y179=\"\",\"\",ColorLastY(AC179))","v":""}]
[171,"ندى خالد محمد حموده","انثى",3,"مسلم","منقول",null,null,null,null,0,null,null,null,0,null,0,0,null,null,null,0,null,null,null,0,{"$f":"IF(Y180=\"\",\"\",ColorSubject(Z180))","v":""},0,0,{"$f":"IF(Y180=\"\",\"\",ColorLastY(AC180))","v":""}]
[172,"ندى ضياء السيد عطوان","انثى",3,"مسلم","منقول",null,null,null,null,0,null,null,null,0,null,0,0,null,null,null,0,null,null,null,0,{"$f":"IF(Y181=\"\",\"\",ColorSubject(Z181))","v":""},0,0,{"$f":"IF(Y181=\"\",\"\",ColorLastY(AC181))","v":""}]
[173,"نهال ابراهيم امين زيدان","انثى",3,"مسلم","منقول",null,null,null,null,0,null,null,null,0,null,0,0,null,null,null,0,null,null,null,0,{"$f":"IF(Y182=\"\",\"\",ColorSubject(Z182))","v":""},0,0,{"$f":"IF(Y182=\"\",\"\",ColorLastY(AC182))","v":""}]
[174,"نورهان اسلام محمود عبده","انثى",3,"مسلم","منقول",null,null,null,null,0,null,null,null,0,null,0,0,null,null,null,0,null,null,null,0,{"$f":"IF(Y183=\"\",\"\",ColorSubject(Z183))","v":""},0,0,{"$f":"IF(Y183=\"\",\"\",ColorLastY(AC183))","v":""}]
[175,"نورهان محمد قطب فريج","انثى",3,"مسلم","منقول",null,null,null,null,0,null,null,null,0,null,0,0,null,null,null,0,null,null,null,0,{"$f":"IF(Y184=\"\",\"\",ColorSubject(Z184))","v":""},0,0,{"$f":"IF(Y184=\"\",\"\",ColorLastY(AC184))","v":""}]
[176,"هايدى محمد كمال الجمال","انثى",2,"مسلم","منقول",null,null,null,null,0,null,null,null,0,null,0,0,null,null,null,0,null,null,null,0,{"$f":"IF(Y185=\"\",\"\",ColorSubject(Z185))","v":""},0,0,{"$f":"IF(Y185=\"\",\"\",ColorLastY(AC185))","v":""}]
[177,"هنا وليد على فرماوى","انثى",3,"مسلم","منقول",null,null,null,null,0,null,null,null,0,null,0,0,null,null,null,0,null,null,null,0,{"$f":"IF(Y186=\"\",\"\",ColorSubject(Z186))","v":""},0,0,{"$f":"IF(Y186=\"\",\"\",ColorLastY(AC186))","v":""}]
[178,"يارا حمدى عبدالحليم  جبر","انثى",3,"مسلم","منقول",null,null,null,null,0,null,null,null,0,null,0,0,null,null,null,0,null,null,null,0,{"$f":"IF(Y187=\"\",\"\",ColorSubject(Z187))","v":""},0,0,{"$f":"IF(Y187=\"\",\"\",ColorLastY(AC187))","v":""}]
[179,"ياسمين حسين السيد عبد القادر","انثى",3,"مسلم","منقول",null,null,null,null,0,null,null,null,0,null,0,0,null,null,null,0,null,null,null,0,{"$f":"IF(Y188=\"\",\"\",ColorSubject(Z188))","v":""},0,0,{"$f":"IF(Y188=\"\",\"\",ColorLastY(AC188))","v":""}]
[180,"ياسمين شاكر ابراهيم بهنسى","انثى",3,"مسلم","منقول",null,null,null,null,0,null,null,null,0,null,0,0,null,null,null,0,null,null,null,0,{"$f":"IF(Y189=\"\",\"\",ColorSubject(Z189))","v":""},0,0,{"$f":"IF(Y189=\"\",\"\",ColorLastY(AC189))","v":""}]
[181,"ياسمين محمود السيد قطب فريج","انثى",2,"مسلم","منقول",null,null,null,null,0,null,null,null,0,null,0,0,null,null,null,0,null,null,null,0,{"$f":"IF(Y190=\"\",\"\",ColorSubject(Z190))","v":""},0,0,{"$f":"IF(Y190=\"\",\"\",ColorLastY(AC190))","v":""}]
[182,"يمنى وائل محمد زكريا حجازى","انثى",3,"مسلم","منقول",null,null,null,null,0,null,null,null,0,null,0,0,null,null,null,0,null,null,null,0,{"$f":"IF(Y191=\"\",\"\",ColorSubject(Z191))","v":""},0,0,{"$f":"IF(Y191=\"\",\"\",ColorLastY(AC191))","v":""}]
[null,null,null,null,null,null,null,null,null,null,0,null,null,null,0,null,0,0,null,null,null,0,null,null,null,0,{"$f":"IF(Y192=\"\",\"\",ColorSubject(Z192))","v":""},0,0,{"$f":"IF(Y192=\"\",\"\",ColorLastY(AC192))","v":""}]
[null,null,null,null,null,null,null,null,null,null,0,null,null,null,0,null,0,0,null,null,null,0,null,null,null,0,{"$f":"IF(Y193=\"\",\"\",ColorSubject(Z193))","v":""},0,0,{"$f":"IF(Y193=\"\",\"\",ColorLastY(AC193))","v":""}]
[null,null,null,null,null,null,null,null,null,null,0,null,null,null,0,null,0,0,null,null,null,0,null,null,null,0,{"$f":"IF(Y194=\"\",\"\",ColorSubject(Z194))","v":""},0,0,{"$f":"IF(Y194=\"\",\"\",ColorLastY(AC194))","v":""}]
[null,null,null,null,null,null,null,null,null,null,0,null,null,null,0,null,0,0,null,null,null,0,null,null,null,0,{"$f":"IF(Y195=\"\",\"\",ColorSubject(Z195))","v":""},0,0,{"$f":"IF(Y195=\"\",\"\",ColorLastY(AC195))","v":""}]
[null,null,null,null,null,null,null,null,null,null,0,null,null,null,0,null,0,0,null,null,null,0,null,null,null,0,{"$f":"IF(Y196=\"\",\"\",ColorSubject(Z196))","v":""},0,0,{"$f":"IF(Y196=\"\",\"\",ColorLastY(AC196))","v":""}]
[null,null,null,null,null,null,null,null,null,null,0,null,null,null,0,null,0,0,null,null,null,0,null,null,null,0,{"$f":"IF(Y197=\"\",\"\",ColorSubject(Z197))","v":""},0,0,{"$f":"IF(Y197=\"\",\"\",ColorLastY(AC197))","v":""}]
[null,null,null,null,null,null,null,null,null,null,0,null,null,null,0,null,0,0,null,null,null,0,null,null,null,0,{"$f":"IF(Y198=\"\",\"\",ColorSubject(Z198))","v":""},0,0,{"$f":"IF(Y198=\"\",\"\",ColorLastY(AC198))","v":""}]
[null,null,null,null,null,null,null,null,null,null,0,null,null,null,0,null,0,0,null,null,null,0,null,null,null,0,{"$f":"IF(Y199=\"\",\"\",ColorSubject(Z199))","v":""},0,0,{"$f":"IF(Y199=\"\",\"\",ColorLastY(AC199))","v":""}]
[null,null,null,null,null,null,null,null,null,null,0,null,null,null,0,null,0,0,null,null,null,0,null,null,null,0,{"$f":"IF(Y200=\"\",\"\",ColorSubject(Z200))","v":""},0,0,{"$f":"IF(Y200=\"\",\"\",ColorLastY(AC200))","v":""}]
[null,null,null,null,null,null,null,null,null,null,0,null,null,null,0,null,0,0,null,null,null,0,null,null,null,0,{"$f":"IF(Y201=\"\",\"\",ColorSubject(Z201))","v":""},0,0,{"$f":"IF(Y201=\"\",\"\",ColorLastY(AC201))","v":""}]
[null,null,null,null,null,null,null,null,null,null,{"$f":"SUM(I202:J202)/100","v":0},null,null,null,{"$f":"SUM(M202:N202)/100","v":0},null,{"$f":"(K202+O202)*100","v":0},{"$f":"Q202/200","v":0},null,null,null,{"$f":"SUM(T202:U202)/100","v":0},null,null,null,{"$f":"SUM(X202:Y202)/100","v":0},{"$f":"IF(Y202=\"\",\"\",ColorSubject(Z202))","v":""},0,0,{"$f":"IF(Y202=\"\",\"\",ColorLastY(AC202))","v":""}]
[null,null,null,null,null,null,null,null,null,null,0,null,null,null,0,null,0,0,null,null,null,0,null,null,null,0,{"$f":"IF(Y203=\"\",\"\",ColorSubject(Z203))","v":""},0,0,{"$f":"IF(Y203=\"\",\"\",ColorLastY(AC203))","v":""}]
[null,null,null,null,null,null,null,null,null,null,0,null,null,null,0,null,0,0,null,null,null,0,null,null,null,0,{"$f":"IF(Y204=\"\",\"\",ColorSubject(Z204))","v":""},0,0,{"$f":"IF(Y204=\"\",\"\",ColorLastY(AC204))","v":""}]
[null,null,null,null,null,null,null,null,null,null,0,null,null,null,0,null,0,0,null,null,null,0,null,null,null,0,{"$f":"IF(Y205=\"\",\"\",ColorSubject(Z205))","v":""},0,0,{"$f":"IF(Y205=\"\",\"\",ColorLastY(AC205))","v":""}]
[null,null,null,null,null,null,null,null,null,null,0,null,null,null,0,null,0,0,null,null,null,0,null,null,null,0,{"$f":"IF(Y206=\"\",\"\",ColorSubject(Z206))","v":""},0,0,{"$f":"IF(Y206=\"\",\"\",ColorLastY(AC206))","v":""}]
[null,null,null,null,null,null,null,null,null,null,0,null,null,null,0,null,0,0,null,null,null,0,null,null,null,0,{"$f":"IF(Y207=\"\",\"\",ColorSubject(Z207))","v":""},0,0,{"$f":"IF(Y207=\"\",\"\",ColorLastY(AC207))","v":""}]
[null,null,null,null,null,null,null,null,null,null,0,null,null,null,0,null,0,0,null,null,null,0,null,null,null,0,{"$f":"IF(Y208=\"\",\"\",ColorSubject(Z208))","v":""},0,0,{"$f":"IF(Y208=\"\",\"\",ColorLastY(AC208))","v":""}]
[null,null,null,null,null,null,null,null,null,null,0,null,null,null,0,null,0,0,null,null,null,0,null,null,null,0,{"$f":"IF(Y209=\"\",\"\",ColorSubject(Z209))","v":""},0,0,{"$f":"IF(Y209=\"\",\"\",ColorLastY(AC209))","v":""}]
[null,null,null,null,null,null,null,null,null,null,0,null,null,null,0,null,0,0,null,null,null,0,null,null,null,0,{"$f":"IF(Y210=\"\",\"\",ColorSubject(Z210))","v":""},0,0,{"$f":"IF(Y210=\"\",\"\",ColorLastY(AC210))","v":""}]
[null,null,null,null,null,null,null,null,null,null,0,null,null,null,0,null,0,0,null,null,null,0,null,null,null,0,{"$f":"IF(Y211=\"\",\"\",ColorSubject(Z211))","v":""},0,0,{"$f":"IF(Y211=\"\",\"\",ColorLastY(AC211))","v":""}]
[null,null,null,null,null,null,null,null,null,null,0,null,null,null,0,null,0,0,null,null,null,0,null,null,null,0,{"$f":"IF(Y212=\"\",\"\",ColorSubject(Z212))","v":""},0,0,{"$f":"IF(Y212=\"\",\"\",ColorLastY(AC212))","v":""}]
[null,null,null,null,null,null,null,null,null,null,0,null,null,null,0,null,0,0,null,null,null,0,null,null,null,0,{"$f":"IF(Y213=\"\",\"\",ColorSubject(Z213))","v":""},0,0,{"$f":"IF(Y213=\"\",\"\",ColorLastY(AC213))","v":""}]
[null,null,null,null,null,null,null,null,null,null,0,null,null,null,0,null,0,0,null,null,null,0,null,null,null,0,{"$f":"IF(Y214=\"\",\"\",ColorSubject(Z214))","v":""},0,0,{"$f":"IF(Y214=\"\",\"\",ColorLastY(AC214))","v":""}]
[null,null,null,null,null,null,null,null,null,null,0,null,null,null,0,null,0,0,null,null,null,0,null,null,null,0,{"$f":"IF(Y215=\"\",\"\",ColorSubject(Z215))","v":""},0,0,{"$f":"IF(Y215=\"\",\"\",ColorLastY(AC215))","v":""}]
[null,null,null,null,null,null,null,null,null,null,0,null,null,null,0,null,0,0,null,null,null,0,null,null,null,0,{"$f":"IF(Y216=\"\",\"\",ColorSubject(Z216))","v":""},0,0,{"$f":"IF(Y216=\"\",\"\",ColorLastY(AC216))","v":""}]
[null,null,null,null,null,null,null,null,null,null,0,null,null,null,0,null,0,0,null,null,null,0,null,null,null,0,{"$f":"IF(Y217=\"\",\"\",ColorSubject(Z217))","v":""},0,0,{"$f":"IF(Y217=\"\",\"\",ColorLastY(AC217))","v":""}]
[null,null,null,null,null,null,null,null,null,null,0,null,null,null,0,null,0,0,null,null,null,0,null,null,null,0,{"$f":"IF(Y218=\"\",\"\",ColorSubject(Z218))","v":""},0,0,{"$f":"IF(Y218=\"\",\"\",ColorLastY(AC218))","v":""}]
[null,null,null,null,null,null,null,null,null,null,0,null,null,null,0,null,0,0,null,null,null,0,null,null,null,0,{"$f":"IF(Y219=\"\",\"\",ColorSubject(Z219))","v":""},0,0,{"$f":"IF(Y219=\"\",\"\",ColorLastY(AC219))","v":""}]
[null,null,null,null,null,null,null,null,null,null,0,null,null,null,0,null,0,0,null,null,null,0,null,null,null,0,{"$f":"IF(Y220=\"\",\"\",ColorSubject(Z220))","v":""},0,0,{"$f":"IF(Y220=\"\",\"\",ColorLastY(AC220))","v":""}]
[null,null,null,null,null,null,null,null,null,null,0,null,null,null,0,null,0,0,null,null,null,0,null,null,null,0,{"$f":"IF(Y221=\"\",\"\",ColorSubject(Z221))","v":""},0,0,{"$f":"IF(Y221=\"\",\"\",ColorLastY(AC221))","v":""}]
[null,null,null,null,null,null,null,null,null,null,0,null,null,null,0,null,0,0,null,null,null,0,null,null,null,0,{"$f":"IF(Y222=\"\",\"\",ColorSubject(Z222))","v":""},0,0,{"$f":"IF(Y222=\"\",\"\",ColorLastY(AC222))","v":""}]
[null,null,null,null,null,null,null,null,null,null,0,null,null,null,0,null,0,0,null,null,null,0,null,null,null,0,{"$f":"IF(Y223=\"\",\"\",ColorSubject(Z223))","v":""},0,0,{"$f":"IF(Y223=\"\",\"\",ColorLastY(AC223))","v":""}]
[null,null,null,null,null,null,null,null,null,null,0,null,null,null,0,null,0,0,null,null,null,0,null,null,null,0,{"$f":"IF(Y224=\"\",\"\",ColorSubject(Z224))","v":""},0,0,{"$f":"IF(Y224=\"\",\"\",ColorLastY(AC224))","v":""}]
[null,null,null,null,null,null,null,null,null,null,0,null,null,null,0,null,0,0,null,null,null,0,null,null,null,0,{"$f":"IF(Y225=\"\",\"\",ColorSubject(Z225))","v":""},0,0,{"$f":"IF(Y225=\"\",\"\",ColorLastY(AC225))","v":""}]
[null,null,null,null,null,null,null,null,null,null,0,null,null,null,0,null,0,0,null,null,null,0,null,null,null,0,{"$f":"IF(Y226=\"\",\"\",ColorSubject(Z226))","v":""},0,0,{"$f":"IF(Y226=\"\",\"\",ColorLastY(AC226))","v":""}]
[null,null,null,null,null,null,null,null,null,null,0,null,null,null,0,null,0,0,null,null,null,0,null,null,null,0,{"$f":"IF(Y227=\"\",\"\",ColorSubject(Z227))","v":""},0,0,{"$f":"IF(Y227=\"\",\"\",ColorLastY(AC227))","v":""}]
[null,null,null,null,null,null,null,null,null,null,0,null,null,null,0,null,0,0,null,null,null,0,null,null,null,0,{"$f":"IF(Y228=\"\",\"\",ColorSubject(Z228))","v":""},0,0,{"$f":"IF(Y228=\"\",\"\",ColorLastY(AC228))","v":""}]
[null,null,null,null,null,null,null,null,null,null,0,null,null,null,0,null,0,0,null,null,null,0,null,null,null,0,{"$f":"IF(Y229=\"\",\"\",ColorSubject(Z229))","v":""},0,0,{"$f":"IF(Y229=\"\",\"\",ColorLastY(AC229))","v":""}]
[null,null,null,null,null,null,null,null,null,null,0,null,null,null,0,null,0,0,null,null,null,0,null,null,null,0,{"$f":"IF(Y230=\"\",\"\",ColorSubject(Z230))","v":""},0,0,{"$f":"IF(Y230=\"\",\"\",ColorLastY(AC230))","v":""}]
[null,null,null,null,null,null,null,null,null,null,0,null,null,null,0,null,0,0,null,null,null,0,null,null,null,0,{"$f":"IF(Y231=\"\",\"\",ColorSubject(Z231))","v":""},0,0,{"$f":"IF(Y231=\"\",\"\",ColorLastY(AC231))","v":""}]
[null,null,null,null,null,null,null,null,null,null,0,null,null,null,0,null,0,0,null,null,null,0,null,null,null,0,{"$f":"IF(Y232=\"\",\"\",ColorSubject(Z232))","v":""},0,0,{"$f":"IF(Y232=\"\",\"\",ColorLastY(AC232))","v":""}]
[null,null,null,null,null,null,null,null,null,null,0,null,null,null,0,null,0,0,null,null,null,0,null,null,null,0,{"$f":"IF(Y233=\"\",\"\",ColorSubject(Z233))","v":""},0,0,{"$f":"IF(Y233=\"\",\"\",ColorLastY(AC233))","v":""}]
[null,null,null,null,null,null,null,null,null,null,0,null,null,null,0,null,0,0,null,null,null,0,null,null,null,0,{"$f":"IF(Y234=\"\",\"\",ColorSubject(Z234))","v":""},0,0,{"$f":"IF(Y234=\"\",\"\",ColorLastY(AC234))","v":""}]
[null,null,null,null,null,null,null,null,null,null,0,null,null,null,0,null,0,0,null,null,null,0,null,null,null,0,{"$f":"IF(Y235=\"\",\"\",ColorSubject(Z235))","v":""},0,0,{"$f":"IF(Y235=\"\",\"\",ColorLastY(AC235))","v":""}]
[null,null,null,null,null,null,null,null,null,null,0,null,null,null,0,null,0,0,null,null,null,0,null,null,null,0,{"$f":"IF(Y236=\"\",\"\",ColorSubject(Z236))","v":""},0,0,{"$f":"IF(Y236=\"\",\"\",ColorLastY(AC236))","v":""}]
[null,null,null,null,null,null,null,null,null,null,0,null,null,null,0,null,0,0,null,null,null,0,null,null,null,0,{"$f":"IF(Y237=\"\",\"\",ColorSubject(Z237))","v":""},0,0,{"$f":"IF(Y237=\"\",\"\",ColorLastY(AC237))","v":""}]
[null,null,null,null,null,null,null,null,null,null,0,null,null,null,0,null,0,0,null,null,null,0,null,null,null,0,{"$f":"IF(Y238=\"\",\"\",ColorSubject(Z238))","v":""},0,0,{"$f":"IF(Y238=\"\",\"\",ColorLastY(AC238))","v":""}]
[null,null,null,null,null,null,null,null,null,null,0,null,null,null,0,null,0,0,null,null,null,0,null,null,null,0,{"$f":"IF(Y239=\"\",\"\",ColorSubject(Z239))","v":""},0,0,{"$f":"IF(Y239=\"\",\"\",ColorLastY(AC239))","v":""}]
[null,null,null,null,null,null,null,null,null,null,0,null,null,null,0,null,0,0,null,null,null,0,null,null,null,0,{"$f":"IF(Y240=\"\",\"\",ColorSubject(Z240))","v":""},0,0,{"$f":"IF(Y240=\"\",\"\",ColorLastY(AC240))","v":""}]
[null,null,null,null,null,null,null,null,null,null,0,null,null,null,0,null,0,0,null,null,null,0,null,null,null,0,{"$f":"IF(Y241=\"\",\"\",ColorSubject(Z241))","v":""},0,0,{"$f":"IF(Y241=\"\",\"\",ColorLastY(AC241))","v":""}]
[null,null,null,null,null,null,null,null,null,null,0,null,null,null,0,null,0,0,null,null,null,0,null,null,null,0,{"$f":"IF(Y242=\"\",\"\",ColorSubject(Z242))","v":""},0,0,{"$f":"IF(Y242=\"\",\"\",ColorLastY(AC242))","v":""}]
[null,null,null,null,null,null,null,null,null,null,0,null,null,null,0,null,0,0,null,null,null,0,null,null,null,0,{"$f":"IF(Y243=\"\",\"\",ColorSubject(Z243))","v":""},0,0,{"$f":"IF(Y243=\"\",\"\",ColorLastY(AC243))","v":""}]
[null,null,null,null,null,null,null,null,null,null,0,null,null,null,0,null,0,0,null,null,null,0,null,null,null,0,{"$f":"IF(Y244=\"\",\"\",ColorSubject(Z244))","v":""},0,0,{"$f":"IF(Y244=\"\",\"\",ColorLastY(AC244))","v":""}]
[null,null,null,null,null,null,null,null,null,null,0,null,null,null,0,null,0,0,null,null,null,0,null,null,null,0,{"$f":"IF(Y245=\"\",\"\",ColorSubject(Z245))","v":""},0,0,{"$f":"IF(Y245=\"\",\"\",ColorLastY(AC245))","v":""}]
[null,null,null,null,null,null,null,null,null,null,0,null,null,null,0,null,0,0,null,null,null,0,null,null,null,0,{"$f":"IF(Y246=\"\",\"\",ColorSubject(Z246))","v":""},0,0,{"$f":"IF(Y246=\"\",\"\",ColorLastY(AC246))","v":""}]
[null,null,null,null,null,null,null,null,null,null,0,null,null,null,0,null,0,0,null,null,null,0,null,null,null,0,{"$f":"IF(Y247=\"\",\"\",ColorSubject(Z247))","v":""},0,0,{"$f":"IF(Y247=\"\",\"\",ColorLastY(AC247))","v":""}]
[null,null,null,null,null,null,null,null,null,null,0,null,null,null,0,null,0,0,null,null,null,0,null,null,null,0,{"$f":"IF(Y248=\"\",\"\",ColorSubject(Z248))","v":""},0,0,{"$f":"IF(Y248=\"\",\"\",ColorLastY(AC248))","v":""}]
[null,null,null,null,null,null,null,null,null,null,0,null,null,null,0,null,0,0,null,null,null,0,null,null,null,0,{"$f":"IF(Y249=\"\",\"\",ColorSubject(Z249))","v":""},0,0,{"$f":"IF(Y249=\"\",\"\",ColorLastY(AC249))","v":""}]
[null,null,null,null,null,null,null,null,null,null,0,null,null,null,0,null,0,0,null,null,null,0,null,null,null,0,{"$f":"IF(Y250=\"\",\"\",ColorSubject(Z250))","v":""},0,0,{"$f":"IF(Y250=\"\",\"\",ColorLastY(AC250))","v":""}]
[null,null,null,null,null,null,null,null,null,null,0,null,null,null,0,null,0,0,null,null,null,0,null,null,null,0,{"$f":"IF(Y251=\"\",\"\",ColorSubject(Z251))","v":""},0,0,{"$f":"IF(Y251=\"\",\"\",ColorLastY(AC251))","v":""}]
[null,null,null,null,null,null,null,null,null,null,0,null,null,null,0,null,0,0,null,null,null,0,null,null,null,0,{"$f":"IF(Y252=\"\",\"\",ColorSubject(Z252))","v":""},0,0,{"$f":"IF(Y252=\"\",\"\",ColorLastY(AC252))","v":""}]
[null,null,null,null,null,null,null,null,null,null,0,null,null,null,0,null,0,0,null,null,null,0,null,null,null,0,{"$f":"IF(Y253=\"\",\"\",ColorSubject(Z253))","v":""},0,0,{"$f":"IF(Y253=\"\",\"\",ColorLastY(AC253))","v":""}]
[null,null,null,null,null,null,null,null,null,null,0,null,null,null,0,null,0,0,null,null,null,0,null,null,null,0,{"$f":"IF(Y254=\"\",\"\",ColorSubject(Z254))","v":""},0,0,{"$f":"IF(Y254=\"\",\"\",ColorLastY(AC254))","v":""}]
[null,null,null,null,null,null,null,null,null,null,0,null,null,null,0,null,0,0,null,null,null,0,null,null,null,0,{"$f":"IF(Y255=\"\",\"\",ColorSubject(Z255))","v":""},0,0,{"$f":"IF(Y255=\"\",\"\",ColorLastY(AC255))","v":""}]
[null,null,null,null,null,null,null,null,null,null,0,null,null,null,0,null,0,0,null,null,null,0,null,null,null,0,{"$f":"IF(Y256=\"\",\"\",ColorSubject(Z256))","v":""},0,0,{"$f":"IF(Y256=\"\",\"\",ColorLastY(AC256))","v":""}]
[null,null,null,null,null,null,null,null,null,null,0,null,null,null,0,null,0,0,null,null,null,0,null,null,null,0,{"$f":"IF(Y257=\"\",\"\",ColorSubject(Z257))","v":""},0,0,{"$f":"IF(Y257=\"\",\"\",ColorLastY(AC257))","v":""}]
[null,null,null,null,null,null,null,null,null,null,0,null,null,null,0,null,0,0,null,null,null,0,null,null,null,0,{"$f":"IF(Y258=\"\",\"\",ColorSubject(Z258))","v":""},0,{"$f":"AB258/2","v":0},{"$f":"IF(Y258=\"\",\"\",ColorLastY(AC258))","v":""}]
[null,null,null,null,null,null,null,null,null,null,0,null,null,null,0,null,0,0,null,null,null,0,null,null,null,0,{"$f":"IF(Y259=\"\",\"\",ColorSubject(Z259))","v":""},0,0,{"$f":"IF(Y259=\"\",\"\",ColorLastY(AC259))","v":""}]
[null,null,null,null,null,null,null,null,null,null,0,null,null,null,0,null,0,0,null,null,null,0,null,null,null,0,{"$f":"IF(Y260=\"\",\"\",ColorSubject(Z260))","v":""},0,0,{"$f":"IF(Y260=\"\",\"\",ColorLastY(AC260))","v":""}]
[null,null,null,null,null,null,null,null,null,null,0,null,null,null,0,null,0,0,null,null,null,0,null,null,null,0,{"$f":"IF(Y261=\"\",\"\",ColorSubject(Z261))","v":""},0,0,{"$f":"IF(Y261=\"\",\"\",ColorLastY(AC261))","v":""}]
[null,null,null,null,null,null,null,null,null,null,0,null,null,null,0,null,0,0,null,null,null,0,null,null,null,0,{"$f":"IF(Y262=\"\",\"\",ColorSubject(Z262))","v":""},0,0,{"$f":"IF(Y262=\"\",\"\",ColorLastY(AC262))","v":""}]
[null,null,null,null,null,null,null,null,null,null,0,null,null,null,0,null,0,0,null,null,null,0,null,null,null,0,{"$f":"IF(Y263=\"\",\"\",ColorSubject(Z263))","v":""},0,0,{"$f":"IF(Y263=\"\",\"\",ColorLastY(AC263))","v":""}]
[null,null,null,null,null,null,null,null,null,null,0,null,null,null,0,null,0,0,null,null,null,0,null,null,null,0,{"$f":"IF(Y264=\"\",\"\",ColorSubject(Z264))","v":""},0,0,{"$f":"IF(Y264=\"\",\"\",ColorLastY(AC264))","v":""}]
[null,null,null,null,null,null,null,null,null,null,0,null,null,null,0,null,0,0,null,null,null,0,null,null,null,0,{"$f":"IF(Y265=\"\",\"\",ColorSubject(Z265))","v":""},0,0,{"$f":"IF(Y265=\"\",\"\",ColorLastY(AC265))","v":""}]
[null,null,null,null,null,null,null,null,null,null,{"$f":"SUM(I266:J266)/100","v":0},null,null,null,{"$f":"SUM(M266:N266)/100","v":0},null,{"$f":"(K266+O266)*100","v":0},{"$f":"Q266/200","v":0},null,null,null,{"$f":"SUM(T266:U266)/100","v":0},null,null,null,{"$f":"SUM(X266:Y266)/100","v":0},{"$f":"IF(Y266=\"\",\"\",ColorSubject(Z266))","v":""},0,0,{"$f":"IF(Y266=\"\",\"\",ColorLastY(AC266))","v":""}]
[null,null,null,null,null,null,null,null,null,null,0,null,null,null,0,null,0,0,null,null,null,0,null,null,null,0,{"$f":"IF(Y267=\"\",\"\",ColorSubject(Z267))","v":""},0,0,{"$f":"IF(Y267=\"\",\"\",ColorLastY(AC267))","v":""}]
[null,null,null,null,null,null,null,null,null,null,0,null,null,null,0,null,0,0,null,null,null,0,null,null,null,0,{"$f":"IF(Y268=\"\",\"\",ColorSubject(Z268))","v":""},0,0,{"$f":"IF(Y268=\"\",\"\",ColorLastY(AC268))","v":""}]
[null,null,null,null,null,null,null,null,null,null,0,null,null,null,0,null,0,0,null,null,null,0,null,null,null,0,{"$f":"IF(Y269=\"\",\"\",ColorSubject(Z269))","v":""},0,0,{"$f":"IF(Y269=\"\",\"\",ColorLastY(AC269))","v":""}]
[null,null,null,null,null,null,null,null,null,null,0,null,null,null,0,null,0,0,null,null,null,0,null,null,null,0,{"$f":"IF(Y270=\"\",\"\",ColorSubject(Z270))","v":""},0,0,{"$f":"IF(Y270=\"\",\"\",ColorLastY(AC270))","v":""}]
[null,null,null,null,null,null,null,null,null,null,0,null,null,null,0,null,0,0,null,null,null,0,null,null,null,0,{"$f":"IF(Y271=\"\",\"\",ColorSubject(Z271))","v":""},0,0,{"$f":"IF(Y271=\"\",\"\",ColorLastY(AC271))","v":""}]
[null,null,null,null,null,null,null,null,null,null,0,null,null,null,0,null,0,0,null,null,null,0,null,null,null,0,{"$f":"IF(Y272=\"\",\"\",ColorSubject(Z272))","v":""},0,0,{"$f":"IF(Y272=\"\",\"\",ColorLastY(AC272))","v":""}]
[null,null,null,null,null,null,null,null,null,null,0,null,null,null,0,null,0,0,null,null,null,0,null,null,null,0,{"$f":"IF(Y273=\"\",\"\",ColorSubject(Z273))","v":""},0,0,{"$f":"IF(Y273=\"\",\"\",ColorLastY(AC273))","v":""}]

{"sheet":"Sheet2","index":1,"n_rows":0,"n_cols":0,"rows_kept":0,"cut":false,"hidden":false,"merged":[]}